Workbook

Sheet Blank Analysis Sheet
B2: THE ECONOMICS OF IRRIGATION EFFICIENCY IMPROVEMENT | P2: System Type | Q2: Hours per Acre to Operate | T2: Station Name 2007 | U2: Base Yield | V2: Max Yield | W2: Yield Within Influence | X2: % Within Influence | Y2: CU Value for Alfalfa | Z2: NIR (annual) | AA2: Alt. Base Yield
B3: Economic Analysis Tool | U3: 2006 | V3: 2008 | W3: 2008 | X3: 2008 | Y3: 2008 | Z3: 2008 | AA3: 2008
B4: Instructions: Enter data into all applicable blue cells. The yellow results cells and summary will auto-populate based on the information entered into the blue cells. | P4: High-Efficiency Flood (Graded Borders) | Q4: 0.11 | T4: ALLEN'S RANCH | U4: 1.098 | V4: 6.734 | W4: 6.734 | X4: =+Z4/Y4 -> 0.8369468369 | Y4: 33.67 | Z4: 28.18 | AA4: =+(Y4-Z4)/5 -> 1.098
P5: Improved Flood | Q5: 0.13 | T5: ALPINE | U5: 1.534 | V5: 6.942 | W5: 4.636 | X5: =+Z5/Y5 -> 0.7790262172 | Y5: 34.71 | Z5: 27.04 | AA5: =+(Y5-Z5)/5 -> 1.534
B6: 1. | C6: How efficient is your current irrigation system? | F6: 6. | G6: What is the expected market value of your crop? | J6: 11. | K6: What interest rate would you expect to pay if you were to borrow money to fund your project? | P6: None | Q6: 0 | T6: ALTAMONT | U6: 1.074 | V6: 5.576 | W6: 4.584 | X6: 0.8073888092 | Y6: 27.88 | Z6: 22.51 | AA6: 1.074
P7: Pivot | Q7: 0.09 | T7: ALTON | U7: 1.314 | V7: 5.79 | W7: 3.746 | X7: 0.7730569948 | Y7: 28.95 | Z7: 22.38 | AA7: 1.314
B8: 2. | C8: How efficient will your new, updated, or better-managed irrigation system be? | F8: 7. | G8: How much will it cost you (total out-of-pocket) to install your new irrigation system or to upgrade your existing system? | J8: 12. | K8: Which climate station is closest to your farm? | P8: Unimproved Flood | Q8: 0.9 | R8: Yes | T8: ANTIMONY | U8: 0.84 | V8: 5.058 | W8: 4.63 | X8: 0.8339264531 | Y8: 25.29 | Z8: 21.09 | AA8: 0.84
P9: Wheel Line | Q9: 0.18 | R9: No | T9: BEAR RIVER BAY | U9: 1.428 | V9: 6.148 | W9: 4.51 | X9: 0.7677293429 | Y9: 30.74 | Z9: 23.6 | AA9: 1.428
B10: 3. | C10: How many acres are covered by your current irrigation system? | E10: Acres | F10: 8. | G10: How much do you estimate you currently spend per year on all irrigation-related energy for the project area? | J10: 13. | K10: Are you going to install soil moisture sensors as part of your irrigation efficiency improvement project? | T10: BEAVER | U10: 1.19 | V10: 5.904 | W10: 4.666 | X10: 0.7984417344 | Y10: 29.52 | Z10: 23.57 | AA10: 1.19
P11: High-Efficiency Flood (Graded Borders) | T11: BIRDSEYE | U11: 1.13 | V11: 5.554 | W11: 3.762 | X11: 0.796543032 | Y11: 27.77 | Z11: 22.12 | AA11: 1.13
B12: 4. | C12: How many acres will be covered by your new irrigation system and/or efficiency improvement project? | E12: Acres | F12: 9. | G12: How much do you estimate you will spend per year on all system-related energy after implementing your project? | J12: 14. | K12: What type of irrigation system is your "before" system? | P12: Improved Flood | T12: BLACK ROCK | U12: 1.064 | V12: 7.112 | W12: 7.112 | X12: 0.8503937008 | Y12: 35.56 | Z12: 30.24 | AA12: 1.064
P13: Pivot | T13: BLANDING | U13: 1.344 | V13: 7.02 | W13: 5.354 | X13: 0.8085470085 | Y13: 35.1 | Z13: 28.38 | AA13: 1.344
B14: 5. | C14: How many acre feet of water (per acre) will be available for you to use? | E14: Acre Feet | F14: 10. | G14: What is the hourly value of the system operator's and/or soil moisture sensor data collector's time? | J14: 15. | K14: What type of irrigation system will your "after" system be? | P14: Wheel Line | T14: BLUFF | U14: 0.986 | V14: 8.458 | W14: 7.5 | X14: 0.8834239773 | Y14: 42.29 | Z14: 37.36 | AA14: 0.986
T15: BOULDER | U15: 1.18 | V15: 6.02 | W15: 4.862 | X15: 0.803986711 | Y15: 30.1 | Z15: 24.2 | AA15: 1.18
B16: Answer questions 16 through 18 if you are installing soil moisture sensors. | T16: BRIGHAM CITY | U16: 1.738 | V16: 7.334 | W16: 4.572 | X16: 0.7630215435 | Y16: 36.67 | Z16: 27.98 | AA16: 1.738
T17: CALLAO | U17: 0.936 | V17: 6.754 | W17: 6.188 | X17: 0.8614154575 | Y17: 33.77 | Z17: 29.09 | AA17: 0.936
B18: 16. | C18: Is this project an IWM-only project? | F18: 17. | G18: If you are going to install soil moisture sensors, how many will you install? | J18: 18. | K18: If you are going to install soil moisture sensors, how much will the sensors and reader system cost (total, including installation)? | T18: CASTLEDALE | U18: 0.994 | V18: 6.456 | W18: 5.672 | X18: 0.8460346964 | Y18: 32.28 | Z18: 27.31 | AA18: 0.994
T19: CASTLE VALLEY | U19: 1.338 | V19: 7.85 | W19: 7.85 | X19: 0.8295541401 | Y19: 39.25 | Z19: 32.56 | AA19: 1.338
B20: Economic Analysis | T20: CEDAR CITY | U20: 1.182 | V20: 6.684 | W20: 5.412 | X20: 0.8231597846 | Y20: 33.42 | Z20: 27.51 | AA20: 1.182
T21: CEDAR POINT | U21: 1.432 | V21: 6.68 | W21: 6.68 | X21: 0.7856287425 | Y21: 33.4 | Z21: 26.24 | AA21: 1.432
D22: "Before" | E22: "After" | T22: CIRCLEVILLE | U22: 1.072 | V22: 5.934 | W22: 5.092 | X22: 0.8193461409 | Y22: 29.67 | Z22: 24.31 | AA22: 1.072
C23: System Efficiency: | D23: =D6 -> 0 | E23: =D8 -> 0 | F23: Acre Inches | G23: Estimated Time per Year to Read Soil Moisture Sensors and Analyze Data: | H23: =IF($L$10="Yes",(((28*((30*2)+(H18*5))))/60),0) -> 0 | K23: Maximum Potential Yield | L23: =+L29/5 ->  | M23: Tons | T23: COALVILLE | U23: 1.352 | V23: 5.942 | W23: 3.974 | X23: 0.7724671828 | Y23: 29.71 | Z23: 22.95 | AA23: 1.352
T24: CORINNE | U24: 1.624 | V24: 6.978 | W24: 4.972 | X24: 0.7672685583 | Y24: 34.89 | Z24: 26.77 | AA24: 1.624
C25: Estimated Yield per Acre: | D25: =IF(L25>L31,(((L31/5)*D23)+L33),(((L25/5)*D23)+L33)) ->  | E25: =IF(L25>L31,(((L31/5)*E23)+L33),(((L25/5)*E23)+L33)) ->  | F25: Tons | G25: Difference in Yield per Acre: | H25: =E25-D25 ->  | J25: Tons | K25: Total Acre Inches Available for Crop Production: | L25: =(D14*12) -> 0 | M25: Acre Inches | T25: COTTONWOOD WEIR / EAST BENCH | U25: 2.184 | V25: 6.688 | W25: 6.688 | X25: 0.6734449761 | Y25: 33.44 | Z25: 22.52 | AA25: 2.184
T26: COVE FORT | U26: 1.116 | V26: 5.934 | W26: 4.278 | X26: 0.8119312437 | Y26: 29.67 | Z26: 24.09 | AA26: 1.116
C27: Total Tons Produced: | D27: =+D25*D10 ->  | E27: =+E25*D12 ->  | F27: Tons | G27: Difference in Total Tons Produced: | H27: =+E27-D27 ->  | J27: Tons | K27: Percent of Total Yield that Can be Affected by Efficiency Measures: | L27: =IF($L$8=" "," ",LOOKUP($L8,$T$4:$T$128,$X$4:$X$128)) ->  | T27: DEER CREEK DAM | U27: 1.406 | V27: 5.92 | W27: 5.92 | X27: 0.7625 | Y27: 29.6 | Z27: 22.57 | AA27: 1.406
T28: DELTA | U28: 1.04 | V28: 7.528 | W28: 6.558 | X28: 0.8618490967 | Y28: 37.64 | Z28: 32.44 | AA28: 1.04
C29: Total Revenue: | D29: =+D27*H6 ->  | E29: =+E27*H6 ->  | G29: Difference in Total Revenue: | H29: =+E29-D29 ->  | K29: Consumptive Use Value (CU): | L29: =IF($L$8=" "," ",LOOKUP($L8,$T$4:$T$128,$Y$4:$Y$128)) ->  | M29: Inches | T29: DEWEY | U29: 1.054 | V29: 8.668 | W29: 8.668 | X29: 0.8784033226 | Y29: 43.34 | Z29: 38.07 | AA29: 1.054
T30: DUCHESNE | U30: 1.212 | V30: 6.692 | W30: 5.764 | X30: 0.8188882247 | Y30: 33.46 | Z30: 27.4 | AA30: 1.212
C31: Estimated Total Operating Cost: | D31: =('Blank Analysis Sheet'!H96*D35)+H10 ->  | E31: =(P96*E35)+H12 ->  | G31: Difference in Estimated Total Operating Cost: | H31: =+E31-D31 ->  | K31: Net Irrigation Requirement (NIR): | L31: =IF($L$8=" "," ",LOOKUP($L8,$T$4:$T$128,$Z$4:$Z$128)) ->  | M31: Inches | T31: DUGWAY | U31: 1.062 | V31: 7.334 | W31: 6.42 | X31: 0.8551949823 | Y31: 36.67 | Z31: 31.36 | AA31: 1.062
T32: ELBERTA | U32: 1.244 | V32: 7.154 | W32: 5.886 | X32: 0.8261112664 | Y32: 35.77 | Z32: 29.55 | AA32: 1.244
C33: Total Inches of Water Required to Produce Max Potential Yield Given the Efficiency of the System: | D33: =+((L$23-L$33)*5)/D$23 ->  | E33: =+((L$23-L$33)*5)/E$23 ->  | F33: Inches | G33: Estimated Difference in Total Net Revenue: | H33: =H29-H31 ->  | K33: Base Yield/Acre: | L33: =+(L29-L31)/5 ->  | M33: Tons | T33: EMERY | U33: 1.016 | V33: 5.938 | W33: 5.264 | X33: 0.8288986191 | Y33: 29.69 | Z33: 24.61 | AA33: 1.016
T34: ENTERPRISE/ BERYL | U34: 1.124 | V34: 7.078 | W34: 5.926 | X34: 0.8411980786 | Y34: 35.39 | Z34: 29.77 | AA34: 1.124
C35: Total Acres in Production: | D35: =D10 -> 0 | E35: =D12 -> 0 | F35: Acres | G35: Estimated Profit Per Hour for Soil Moisture Sensor Reading and Data Analysis: | H35: =IF($L$10="Yes",(IF(D18="Yes",($H$33/$H$23),((H33*(IF($L14=" "," ",LOOKUP($L14,$P$4:$P$9,$Q$4:$Q$9))))/H23))),0) -> 0 | K35: Approximate Payoff Period for Project (Years): | L35: =IF(H33>0,+(ABS((LN(1-((L6/12)*((H8+L18)/(H33/12)))))/(LN(1+(L6/12))))/12),"Will Never Pay Off") ->  | M35: Years | T35: EPHRAIM | U35: 1.248 | V35: 6.62 | W35: 6.62 | X35: 0.8114803625 | Y35: 33.1 | Z35: 26.86 | AA35: 1.248
T36: ESCALANTE | U36: 1.186 | V36: 7.778 | W36: 6.638 | X36: 0.8475186423 | Y36: 38.89 | Z36: 32.96 | AA36: 1.186
T37: ESKDALE | U37: 0.966 | V37: 7.026 | W37: 7.026 | X37: 0.8625106746 | Y37: 35.13 | Z37: 30.3 | AA37: 0.966
B38: Summary | T38: FAIRFIELD | U38: 1.234 | V38: 6.444 | W38: 5.02 | X38: 0.8085040348 | Y38: 32.22 | Z38: 26.05 | AA38: 1.234
C39: "Before & After" Figures | G39: Basic Data | K39: Economic Results | T39: FARMINGTON USU | U39: 2.008 | V39: 7.398 | W39: 4.384 | X39: 0.7285752906 | Y39: 36.99 | Z39: 26.95 | AA39: 2.008
T40: FERRON | U40: 1.046 | V40: 6.106 | W40: 5.248 | X40: 0.8286930888 | Y40: 30.53 | Z40: 25.3 | AA40: 1.046
C41: "Before" System Efficiency: | D41: =D23 -> 0 | G41: Total Acres in Production: | H41: =D10 -> 0 | I41: Acres | K41: Estimated Profit per Hour for Soil Moisture Sensor Reading: | L41: =H35 -> 0 | T41: FILLMORE | U41: 1.45 | V41: 7.14 | W41: 5.076 | X41: 0.7969187675 | Y41: 35.7 | Z41: 28.45 | AA41: 1.45
C42: "After" System Efficiency: | D42: =E23 -> 0 | G42: Difference in Yield Per Acre: | H42: =H25 ->  | I42: Tons | T42: FISH SPRINGS | U42: 1.104 | V42: 7.426 | W42: 7.426 | X42: 0.8513331538 | Y42: 37.13 | Z42: 31.61 | AA42: 1.104
C43: Before Yield per Acre: | D43: =D25 ->  | E43: Tons | G43: Difference in Total Tons Produced: | H43: =H27 ->  | I43: Tons | K43: Difference in Total Revenue: | L43: =H29 ->  | T43: FLAMING GORGE | U43: 1.302 | V43: 5.818 | W43: 5.818 | X43: 0.7762117566 | Y43: 29.09 | Z43: 22.58 | AA43: 1.302
C44: After Yield per Acre: | D44: =E25 ->  | E44: Tons | G44: Maximum Potential Yield: | H44: =L23 ->  | I44: Tons | T44: FORT DUCHESNE | U44: 0.934 | V44: 6.976 | W44: 6.306 | X44: 0.8661123853 | Y44: 34.88 | Z44: 30.21 | AA44: 0.934
C45: Before Acres: | D45: =D33 ->  | E45: Acres | G45: Base Yield per Acre: | H45: =L33 ->  | I45: Tons | K45: Difference in Total Costs: | L45: =H31 ->  | T45: FRUITLAND | U45: 1.294 | V45: 5.822 | W45: 4.582 | X45: 0.7777396084 | Y45: 29.11 | Z45: 22.64 | AA45: 1.294
C46: After Acres: | D46: =E33 ->  | E46: Acres | G46: Percent of Max that can be Affected: | H46: =L27 ->  | T46: GARFIELD | U46: 1.79 | V46: 6.256 | W46: 4.064 | X46: 0.7138746803 | Y46: 31.28 | Z46: 22.33 | AA46: 1.79
C47: Before Total Tons Produced: | D47: =D27 ->  | E47: Tons | G47: Total Acre Inches Available: | H47: =L25 -> 0 | I47: Ac In | K47: Estimated Total Additional Net Revenue per Year: | L47: =H33 ->  | T47: GARRISON | U47: 1.01 | V47: 7.22 | W47: 6.352 | X47: 0.8601108033 | Y47: 36.1 | Z47: 31.05 | AA47: 1.01
C48: After Total Tons Produced: | D48: =E27 ->  | E48: Tons | G48: Consumptive Use Value: | H48: =L29 ->  | I48: Inches | T48: GRANTSVILLE | U48: 1.31 | V48: 6.854 | W48: 6.854 | X48: 0.8088707324 | Y48: 34.27 | Z48: 27.72 | AA48: 1.31
C49: Before Total Revenue: | D49: =D29 ->  | G49: Net Irrigation Requirement: | H49: =L31 ->  | I49: Inches | K49: Approximate Payoff Period for Project (in Years): | L49: =L35 ->  | T49: GREEN RIVER | U49: 1.03 | V49: 8.396 | W49: 7.896 | X49: 0.8773225345 | Y49: 41.98 | Z49: 36.83 | AA49: 1.03
C50: After Total Revenue: | D50: =E29 ->  | G50: Sensor Reading Hr/Yr: | H50: =D35 -> 0 | I50: Hours | T50: GROUSE CREEK | U50: 1.134 | V50: 5.942 | W50: 4.68 | X50: 0.8091551666 | Y50: 29.71 | Z50: 24.04 | AA50: 1.134
C51: Before Estimated Cost: | D51: =D31 ->  | T51: GUNNISON | U51: 0.974 | V51: 6.716 | W51: 5.61 | X51: 0.8549731983 | Y51: 33.58 | Z51: 28.71 | AA51: 0.974
C52: After Estimated Cost: | D52: =E31 ->  | T52: HANKSVILLE | U52: 0.916 | V52: 9.032 | W52: 8.462 | X52: 0.8985828167 | Y52: 45.16 | Z52: 40.58 | AA52: 0.916
C53: Before Total Inches of Water Required for Max: | D53: =D33 ->  | E53: Inches | T53: HANNA | U53: 1.168 | V53: 5.338 | W53: 4.098 | X53: 0.7811914575 | Y53: 26.69 | Z53: 20.85 | AA53: 1.168
C54: After Total Inches of Water Required for Max: | D54: =E33 ->  | E54: Inches | T54: HEBER | U54: 1.242 | V54: 6.298 | W54: 4.096 | X54: 0.8027945379 | Y54: 31.49 | Z54: 25.28 | AA54: 1.242
T55: HENRIEVILLE | U55: 1.138 | V55: 6.73 | W55: 5.512 | X55: 0.8309063893 | Y55: 33.65 | Z55: 27.96 | AA55: 1.138
T56: HUNTSVILLE | U56: 1.478 | V56: 6.254 | W56: 3.198 | X56: 0.7636712504 | Y56: 31.27 | Z56: 23.88 | AA56: 1.478
T57: IBAPAH | U57: 1.052 | V57: 5.84 | W57: 4.804 | X57: 0.8198630137 | Y57: 29.2 | Z57: 23.94 | AA57: 1.052
T58: IOSEPA | U58: 1.068 | V58: 8.246 | W58: 6.946 | X58: 0.8704826583 | Y58: 41.23 | Z58: 35.89 | AA58: 1.068
T59: JENSEN | U59: 1.048 | V59: 7.304 | W59: 6.402 | X59: 0.856516977 | Y59: 36.52 | Z59: 31.28 | AA59: 1.048
T60: KAMAS | U60: 1.22 | V60: 5.22 | W60: 3.038 | X60: 0.7662835249 | Y60: 26.1 | Z60: 20 | AA60: 1.22
T61: KANAB | U61: 1.496 | V61: 8.52 | W61: 6.75 | X61: 0.8244131455 | Y61: 42.6 | Z61: 35.12 | AA61: 1.496
T62: KANOSH | U62: 1.482 | V62: 7.058 | W62: 5.058 | X62: 0.790025503 | Y62: 35.29 | Z62: 27.88 | AA62: 1.482
B63: Crop Budgets | S63: Labor Hours per Year per Acre | T63: KOOSHAREM | U63: 1.022 | V63: 5.186 | W63: 4.27 | X63: 0.802930968 | Y63: 25.93 | Z63: 20.82 | AA63: 1.022
B64: "Before" Scenario | J64: "After" Scenario | R64: High-Efficiency Flood (Graded Borders) | S64: 0.765 | T64: LAKETOWN | U64: 1.2 | V64: 5.39 | W64: 3.986 | X64: 0.7773654917 | Y64: 26.95 | Z64: 20.95 | AA64: 1.2
E65: Quantity per acre | F65: Unit | G65: Cost per unit | H65: Projected Cost per Acre | M65: Quantity per acre | N65: Unit | O65: Cost per unit | P65: Projected Cost per Acre | R65: Improved Flood | S65: 1.8 | T65: LASAL | U65: 1.416 | V65: 6.292 | W65: 4.892 | X65: 0.7749523204 | Y65: 31.46 | Z65: 24.38 | AA65: 1.416
B66: Operating costs | J66: Operating costs | R66: Pivot | S66: 0.6352941176 | T66: LAVERKIN | U66: 1.316 | V66: 9.358 | W66: 7.826 | X66: 0.8593716606 | Y66: 46.79 | Z66: 40.21 | AA66: 1.316
C67: Fertilization | K67: Fertilization | R67: Unimproved Flood | S67: 7.2 | T67: LEVAN | U67: 1.306 | V67: 6.66 | W67: 4.764 | X67: 0.8039039039 | Y67: 33.3 | Z67: 26.77 | AA67: 1.306
D68: Phosphate (11-52-0) | E68: 192 | F68: pounds | G68: 0.63 | H68: =E68*G68 -> 120.96 | L68: Phosphate (11-52-0) | M68: 192 | N68: pounds | O68: 0.63 | P68: =M68*O68 -> 120.96 | R68: Wheel Line | S68: 1.028571429 | T68: LOA | U68: 1.024 | V68: 5.234 | W68: 4.628 | X68: 0.804356133 | Y68: 26.17 | Z68: 21.05 | AA68: 1.024
D69: Custom application | E69: 1 | F69: acre | G69: 7.82 | H69: =E69*G69 -> 7.82 | L69: Custom application | M69: 1 | N69: acre | O69: 7.82 | P69: =M69*O69 -> 7.82 | T69: LOGAN 5SW | U69: 1.466 | V69: 6.328 | W69: 3.936 | X69: =+Z69/Y69 -> 0.7683312263 | Y69: 31.64 | Z69: 24.31 | AA69: =+(Y69-Z69)/5 -> 1.466
C70: Pesticides/herbicides | K70: Pesticides/herbicides | T70: LOGAN RADIO | U70: 1.588 | V70: 6.732 | W70: 4.666 | X70: 0.7641117053 | Y70: 33.66 | Z70: 25.72 | AA70: 1.588
D71: Permethrin | E71: 8 | F71: oz | G71: 0.98 | H71: 7.84 | L71: Permethrin | M71: 8 | N71: oz | O71: 0.98 | P71: =M71*O71 -> 7.84 | R71: One or More Farm Laborers | T71: LOGAN USU | U71: 1.74 | V71: 6.318 | W71: 4.138 | X71: 0.7245963913 | Y71: 31.59 | Z71: 22.89 | AA71: 1.74
D72: Gramoxone Extra | E72: 1.5 | F72: oz | G72: 5.85 | H72: 8.775 | L72: Gramoxone Extra | M72: 1.5 | N72: oz | O72: 5.85 | P72: =M72*O72 -> 8.775 | R72: Owner and/or Farm Manager | T72: MANILA | U72: 1.198 | V72: 5.496 | W72: 4.688 | X72: 0.7820232897 | Y72: 27.48 | Z72: 21.49 | AA72: 1.198
D73: Pursuit | E73: 4 | F73: oz | G73: 4.4609 | H73: 17.8436 | L73: Pursuit | M73: 4 | N73: oz | O73: 4.4609 | P73: =M73*O73 -> 17.8436 | T73: MANTI | U73: 1.314 | V73: 6.406 | W73: 4.788 | X73: 0.7948798002 | Y73: 32.03 | Z73: 25.46 | AA73: 1.314
D74: Custom application | E74: 2 | F74: acre | G74: 7.82 | H74: 15.64 | L74: Custom application | M74: 2 | N74: acre | O74: 7.82 | P74: =M74*O74 -> 15.64 | T74: MARYSVALE | U74: 0.976 | V74: 6.308 | W74: 5.434 | X74: 0.8452758402 | Y74: 31.54 | Z74: 26.66 | AA74: 0.976
C75: Irrigation | K75: Irrigation | M75: 7 | N75: irrigations | T75: MEXICAN HAT | U75: 0.99 | V75: 9.144 | W75: 8.416 | X75: 0.8917322835 | Y75: 45.72 | Z75: 40.77 | AA75: 0.99
D76: =L12 -> 0 | L76: =L14 -> 0 | T76: MIDVALE | U76: 1.376 | V76: 7.468 | W76: 5.576 | X76: 0.815747188 | Y76: 37.34 | Z76: 30.46 | AA76: 1.376
D77: Labor | E77: =LOOKUP(D76,$R$64:$R$68,$S$64:$S$68) ->  | F77: hours | G77: =H14 -> 0 | L77: Labor | M77: =(LOOKUP(L76,$R$64:$R$68,$S$64:$S$68))+(H23/E35) ->  | N77: hours | O77: =H14 -> 0 | P77: =M77*O77 ->  | T77: MILFORD | U77: 1.074 | V77: 7.08 | W77: 5.97 | X77: 0.8483050847 | Y77: 35.4 | Z77: 30.03 | AA77: 1.074
D78: Water assessment | E78: 1 | F78: share | G78: 20 | H78: 20 | L78: Water assessment | M78: 1 | N78: share | O78: 20 | P78: =M78*O78 -> 20 | T78: MOAB | U78: 1.172 | V78: 8.61 | W78: 7.536 | X78: 0.8638792102 | Y78: 43.05 | Z78: 37.19 | AA78: 1.172
D79: Repairs/maintenance | E79: 1 | F79: acre | G79: 2.3 | H79: 2.3 | L79: Repairs/maintenance | M79: 1 | N79: acre | O79: 2.3 | P79: =M79*O79 -> 2.3 | T79: MODENA | U79: 1.124 | V79: 7.432 | W79: 6.262 | X79: 0.8487621098 | Y79: 37.16 | Z79: 31.54 | AA79: 1.124
D80: Pumping | E80: 1 | F80: acre | G80: 0 | H80: 0 | L80: Pumping | M80: 1 | N80: acre | O80: 0 | P80: =M80*O80 -> 0 | T80: MONTICELLO | U80: 1.4 | V80: 6.032 | W80: 4.292 | X80: 0.7679045093 | Y80: 30.16 | Z80: 23.16 | AA80: 1.4
C81: Harvesting | K81: Harvesting | T81: MORGAN | U81: 1.342 | V81: 6.334 | W81: 3.894 | X81: 0.7881275655 | Y81: 31.67 | Z81: 24.96 | AA81: 1.342
D82: Swathing | E82: 4 | F82: acre | G82: 4.034285062 | H82: 16.13714025 | L82: Swathing | M82: 4 | N82: acre | O82: 4.034285062 | P82: =M82*O82 -> 16.13714025 | T82: MORONI | U82: 1.056 | V82: 6.686 | W82: 5.488 | X82: 0.8420580317 | Y82: 33.43 | Z82: 28.15 | AA82: 1.056
D83: Raking | E83: 4 | F83: acre | G83: 1.392278801 | H83: 5.569115203 | L83: Raking | M83: 4 | N83: acre | O83: 1.392278801 | P83: =M83*O83 -> 5.569115203 | T83: NEOLA | U83: 1.088 | V83: 5.848 | W83: 4.908 | X83: 0.8139534884 | Y83: 29.24 | Z83: 23.8 | AA83: 1.088
D84: Baling | E84: =D25 ->  | F84: tons | G84: 4.79 | H84: =E84*G84 ->  | L84: Baling | M84: =E25 ->  | N84: tons | O84: 4.79 | P84: =M84*O84 ->  | T84: NEPHI | U84: 1.394 | V84: 7.142 | W84: 5.232 | X84: 0.804816578 | Y84: 35.71 | Z84: 28.74 | AA84: 1.394
D85: Hauling/stacking | E85: =D25 ->  | F85: tons | G85: 3.63 | H85: =E85*G85 ->  | L85: Hauling/stacking | M85: =E25 ->  | N85: tons | O85: 3.63 | P85: =M85*O85 ->  | T85: NEW HARMONY | U85: 1.468 | V85: 7.108 | W85: 4.714 | X85: 0.7934721441 | Y85: 35.54 | Z85: 28.2 | AA85: 1.468
C86: Crop insurance (75% Yield, 100% Price) | E86: 1 | F86: acre | G86: 19.11 | H86: 19.11 | K86: Crop insurance (75% Yield, 100% Price) | M86: 1 | N86: acre | O86: 19.11 | P86: =M86*O86 -> 19.11 | T86: OAK CITY | U86: 1.368 | V86: 7.35 | W86: 5.662 | X86: 0.813877551 | Y86: 36.75 | Z86: 29.91 | AA86: 1.368
C87: Interest on operating capital | G87: 0.0761 | H87: =((SUM(H68:H74)*G87*(6/12))+SUM(H77:H85)*G87*(3/12)) ->  | K87: Interest on operating capital | O87: 0.0761 | P87: =((SUM(P68:P74)*O87*(6/12))+SUM(P77:P85)*O87*(3/12)) ->  | T87: OGDEN SUGAR FACTORY | U87: 1.714 | V87: 7.42 | W87: 5.138 | X87: 0.7690026954 | Y87: 37.1 | Z87: 28.53 | AA87: 1.714
D88: Subtotal | H88: =SUM(H68:H87) ->  | L88: Subtotal | P88: =SUM(P68:P87) ->  | T88: ORDERVILLE | U88: 1.248 | V88: 6.938 | W88: 4.922 | X88: 0.8201210724 | Y88: 34.69 | Z88: 28.45 | AA88: 1.248
T89: PANGUITCH | U89: 1.138 | V89: 5.982 | W89: 5.058 | X89: 0.8097626212 | Y89: 29.91 | Z89: 24.22 | AA89: 1.138
B90: Ownership costs (excludes cost of land) | J90: Ownership costs (excludes cost of land) | T90: PARK VALLEY | U90: 1.268 | V90: 5.924 | W90: 4.746 | X90: 0.7859554355 | Y90: 29.62 | Z90: 23.28 | AA90: 1.268
C91: Farm insurance | E91: 1 | F91: acre | G91: 2 | H91: 2 | K91: Farm insurance | M91: 1 | N91: acre | O91: 2 | P91: =M91*O91 -> 2 | T91: PAROWAN | U91: 1.31 | V91: 6.674 | W91: 5.182 | X91: 0.8037159125 | Y91: 33.37 | Z91: 26.82 | AA91: 1.31
C92: Machinery ownership costs | E92: 1 | F92: acre | G92: 49.6343968 | H92: 49.6343968 | K92: Machinery ownership costs | M92: 1 | N92: acre | O92: 49.6343968 | P92: =M92*O92 -> 49.6343968 | T92: PARTOUN | U92: 0.972 | V92: 6.638 | W92: 6.638 | X92: 0.8535703525 | Y92: 33.19 | Z92: 28.33 | AA92: 0.972
C93: Irrigation equipment costs | E93: 1 | F93: acre | G93: 8.25 | H93: 8.25 | K93: Irrigation equipment costs | M93: 1 | N93: acre | O93: 8.25 | P93: =M93*O93 -> 8.25 | T93: PELICAN LAKE/OURAY | U93: 1.224 | V93: 7.934 | W93: 7.22 | X93: 0.8457272498 | Y93: 39.67 | Z93: 33.55 | AA93: 1.224
D94: Total Ownership Costs | H94: =SUM(H91:H93) -> 59.8843968 | L94: Total Ownership Costs | P94: =SUM(P91:P93) -> 59.8843968 | T94: PLEASANT GROVE | U94: 1.556 | V94: 7.05 | W94: 4.804 | X94: 0.7792907801 | Y94: 35.25 | Z94: 27.47 | AA94: 1.556
T95: PLEASANT VALLEY/MYTON | U95: 1.028 | V95: 7.194 | W95: 6.522 | X95: 0.8571031415 | Y95: 35.97 | Z95: 30.83 | AA95: 1.028
D96: Total Costs | H96: =H94+H88 ->  | L96: Total Costs | P96: =P94+P88 ->  | T96: PRICE | U96: 1.15 | V96: 7.192 | W96: 6.19 | X96: 0.8401001112 | Y96: 35.96 | Z96: 30.21 | AA96: 1.15
T97: PROVO | U97: 1.854 | V97: 7.474 | W97: 4.828 | X97: 0.7519400589 | Y97: 37.37 | Z97: 28.1 | AA97: 1.854
T98: RANDOLPH | U98: 1.06 | V98: 4.058 | W98: 4.058 | X98: 0.7387875801 | Y98: 20.29 | Z98: 14.99 | AA98: 1.06
T99: RICHFIELD | U99: 1.038 | V99: 6.834 | W99: 5.944 | X99: 0.8481123793 | Y99: 34.17 | Z99: 28.98 | AA99: 1.038
T100: RICHMOND | U100: 1.684 | V100: 6.964 | W100: 4.466 | X100: 0.7581849512 | Y100: 34.82 | Z100: 26.4 | AA100: 1.684
T101: RIVERDALE | U101: 1.798 | V101: 6.724 | W101: 4.262 | X101: 0.7325996431 | Y101: 33.62 | Z101: 24.63 | AA101: 1.798
T102: ROOSEVELT | U102: 1.104 | V102: 7.47 | W102: 6.668 | X102: 0.8522088353 | Y102: 37.35 | Z102: 31.83 | AA102: 1.104
T103: RUSH VALLEY/ JOHNSON PASS | U103: 1.588 | V103: 6.692 | W103: 6.692 | X103: 0.7627017334 | Y103: 33.46 | Z103: 25.52 | AA103: 1.588
T104: SALINA | U104: 1.08 | V104: 6.916 | W104: 5.732 | X104: 0.8438403702 | Y104: 34.58 | Z104: 29.18 | AA104: 1.08
T105: SALT LAKE CITY | U105: 1.592 | V105: 6.992 | W105: 4.856 | X105: 0.7723112128 | Y105: 34.96 | Z105: 27 | AA105: 1.592
T106: SANDY RANCH | U106: 1.012 | V106: 6.706 | W106: 5.93 | X106: 0.8490903668 | Y106: 33.53 | Z106: 28.47 | AA106: 1.012
T107: SCIPIO | U107: 1.224 | V107: 6.458 | W107: 4.794 | X107: 0.810467637 | Y107: 32.29 | Z107: 26.17 | AA107: 1.224
T108: SCOFIELD DAM | U108: 0 | V108: 0 | W108: -1.786 | AA108: 0
T109: SNOWVILLE | U109: 1.24 | V109: 6.344 | W109: 4.948 | X109: 0.8045397226 | Y109: 31.72 | Z109: 25.52 | AA109: 1.24
T110: SPANISH FORK PWR PLNT | U110: 1.782 | V110: 7.11 | W110: 4.466 | X110: 0.7493670886 | Y110: 35.55 | Z110: 26.64 | AA110: 1.782
T111: ST GEORGE | U111: 0.976 | V111: 9.678 | W111: 8.554 | X111: 0.8991527175 | Y111: 48.39 | Z111: 43.51 | AA111: 0.976
T112: THIOKOL/ HOWELL | U112: 1.412 | V112: 6.964 | W112: 5.316 | X112: 0.7972429638 | Y112: 34.82 | Z112: 27.76 | AA112: 1.412
T113: TOOELE | U113: 1.728 | V113: 6.734 | W113: 4.398 | X113: 0.7433917434 | Y113: 33.67 | Z113: 25.03 | AA113: 1.728
T114: TREMONTON | U114: 1.706 | V114: 6.716 | W114: 4.6 | X114: 0.7459797499 | Y114: 33.58 | Z114: 25.05 | AA114: 1.706
T115: TRENTON/ LEWISTON | U115: 1.42 | V115: 6.232 | W115: 3.912 | X115: 0.7721437741 | Y115: 31.16 | Z115: 24.06 | AA115: 1.42
T116: TROPIC | U116: 1.212 | V116: 6.28 | W116: 4.922 | X116: 0.8070063694 | Y116: 31.4 | Z116: 25.34 | AA116: 1.212
T117: UNIV OF UTAH | U117: 1.782 | V117: 6.868 | W117: 4.376 | X117: 0.7405358183 | Y117: 34.34 | Z117: 25.43 | AA117: 1.782
T118: UTAH LAKE LEHI | U118: 1.262 | V118: 6.914 | W118: 5.524 | X118: 0.8174717964 | Y118: 34.57 | Z118: 28.26 | AA118: 1.262
T119: VERNAL | U119: 1.084 | V119: 7.036 | W119: 6.112 | X119: 0.8459351904 | Y119: 35.18 | Z119: 29.76 | AA119: 1.084
T120: VERNON | U120: 1.13 | V120: 6.458 | W120: 5.266 | X120: 0.825023227 | Y120: 32.29 | Z120: 26.64 | AA120: 1.13
T121: VEYO | U121: 1.458 | V121: 8.166 | W121: 6.21 | X121: 0.8214548126 | Y121: 40.83 | Z121: 33.54 | AA121: 1.458
T122: WAH WAH RANCH | U122: 0.964 | V122: 6.958 | W122: 6.282 | X122: 0.8614544409 | Y122: 34.79 | Z122: 29.97 | AA122: 0.964
T123: WANSHIP | U123: 1.322 | V123: 5.87 | W123: 3.916 | X123: 0.7747870528 | Y123: 29.35 | Z123: 22.74 | AA123: 1.322
T124: WENDOVER | U124: 0.838 | V124: 6.392 | W124: 5.894 | X124: 0.8688986233 | Y124: 31.96 | Z124: 27.77 | AA124: 0.838
T125: WOODRUFF | U125: 0.964 | V125: 4.352 | W125: 3.422 | X125: 0.7784926471 | Y125: 21.76 | Z125: 16.94 | AA125: 0.964
T126: ZION NP | U126: 1.63 | V126: 8.87 | W126: 8.87 | X126: 0.8162344983 | Y126: 44.35 | Z126: 36.2 | AA126: 1.63

Sheet Sample Analysis Sheet
B2: THE ECONOMICS OF IRRIGATION EFFICIENCY IMPROVEMENT | P2: System Type | Q2: Hours per Acre to Operate | T2: Station Name 2007 | U2: Base Yield | V2: Max Yield | W2: Yield Within Influence | X2: % Within Influence | Y2: CU Value for Alfalfa | Z2: NIR (annual) | AA2: Alt. Base Yield
B3: Economic Analysis Tool | U3: 2006 | V3: 2008 | W3: 2008 | X3: 2008 | Y3: 2008 | Z3: 2008 | AA3: 2008
B4: Instructions: Enter data into all applicable blue cells. The yellow results cells and summary will auto-populate based on the information entered into the blue cells. | P4: High-Efficiency Flood (Graded Borders) | Q4: 0.11 | T4: ALLEN'S RANCH | U4: 1.098 | V4: 6.734 | W4: 6.734 | X4: =+Z4/Y4 -> 0.8369468369 | Y4: 33.67 | Z4: 28.18 | AA4: =+(Y4-Z4)/5 -> 1.098
P5: Improved Flood | Q5: 0.13 | T5: ALPINE | U5: 1.534 | V5: 6.942 | W5: 4.636 | X5: =+Z5/Y5 -> 0.7790262172 | Y5: 34.71 | Z5: 27.04 | AA5: =+(Y5-Z5)/5 -> 1.534
B6: 1. | C6: How efficient is your current irrigation system? | D6: 0.55 | F6: 6. | G6: What is the expected market value of your crop? | H6: 200 | J6: 11. | K6: What interest rate would you expect to pay if you were to borrow money to fund your project? | L6: 0.03 | P6: None | Q6: 0 | T6: ALTAMONT | U6: 1.074 | V6: 5.576 | W6: 4.584 | X6: 0.8073888092 | Y6: 27.88 | Z6: 22.51 | AA6: 1.074
P7: Pivot | Q7: 0.09 | T7: ALTON | U7: 1.314 | V7: 5.79 | W7: 3.746 | X7: 0.7730569948 | Y7: 28.95 | Z7: 22.38 | AA7: 1.314
B8: 2. | C8: How efficient will your new, updated, or better-managed irrigation system be? | D8: 0.6 | F8: 7. | G8: How much will it cost you (total out-of-pocket) to install your new irrigation system or to upgrade your existing system? | H8: 10000 | J8: 12. | K8: Which climate station is closest to your farm? | L8: FAIRFIELD | P8: Unimproved Flood | Q8: 0.9 | R8: Yes | T8: ANTIMONY | U8: 0.84 | V8: 5.058 | W8: 4.63 | X8: 0.8339264531 | Y8: 25.29 | Z8: 21.09 | AA8: 0.84
P9: Wheel Line | Q9: 0.18 | R9: No | T9: BEAR RIVER BAY | U9: 1.428 | V9: 6.148 | W9: 4.51 | X9: 0.7677293429 | Y9: 30.74 | Z9: 23.6 | AA9: 1.428
B10: 3. | C10: How many acres are covered by your current irrigation system? | D10: 160 | E10: Acres | F10: 8. | G10: How much do you estimate you currently spend per year on all irrigation-related energy for the project area? | H10: 8700 | J10: 13. | K10: Are you going to install soil moisture sensors as part of your irrigation efficiency improvement project? | L10: Yes | T10: BEAVER | U10: 1.19 | V10: 5.904 | W10: 4.666 | X10: 0.7984417344 | Y10: 29.52 | Z10: 23.57 | AA10: 1.19
P11: High-Efficiency Flood (Graded Borders) | T11: BIRDSEYE | U11: 1.13 | V11: 5.554 | W11: 3.762 | X11: 0.796543032 | Y11: 27.77 | Z11: 22.12 | AA11: 1.13
B12: 4. | C12: How many acres will be covered by your new irrigation system and/or efficiency improvement project? | D12: 160 | E12: Acres | F12: 9. | G12: How much do you estimate you will spend per year on all system-related energy after implementing your project? | H12: 7600 | J12: 14. | K12: What type of irrigation system is your "before" system? | L12: Wheel Line | P12: Improved Flood | T12: BLACK ROCK | U12: 1.064 | V12: 7.112 | W12: 7.112 | X12: 0.8503937008 | Y12: 35.56 | Z12: 30.24 | AA12: 1.064
P13: Pivot | T13: BLANDING | U13: 1.344 | V13: 7.02 | W13: 5.354 | X13: 0.8085470085 | Y13: 35.1 | Z13: 28.38 | AA13: 1.344
B14: 5. | C14: How many acre feet of water (per acre) will be available for you to use? | D14: 2 | E14: Acre Feet | F14: 10. | G14: What is the hourly value of the system operator's and/or soil moisture sensor data collector's time? | H14: 12 | J14: 15. | K14: What type of irrigation system will your "after" system be? | L14: Wheel Line | T14: BLUFF | U14: 0.986 | V14: 8.458 | W14: 7.5 | X14: 0.8834239773 | Y14: 42.29 | Z14: 37.36 | AA14: 0.986
T15: BOULDER | U15: 1.18 | V15: 6.02 | W15: 4.862 | X15: 0.803986711 | Y15: 30.1 | Z15: 24.2 | AA15: 1.18
B16: Answer questions 16 through 18 if you are installing soil moisture sensors. | T16: BRIGHAM CITY | U16: 1.738 | V16: 7.334 | W16: 4.572 | X16: 0.7630215435 | Y16: 36.67 | Z16: 27.98 | AA16: 1.738
T17: CALLAO | U17: 0.936 | V17: 6.754 | W17: 6.188 | X17: 0.8614154575 | Y17: 33.77 | Z17: 29.09 | AA17: 0.936
B18: 16. | C18: Is this project an IWM-only project? | D18: No | F18: 17. | G18: If you are going to install soil moisture sensors, how many will you install? | H18: 16 | J18: 18. | K18: If you are going to install soil moisture sensors, how much will the sensors and reader system cost (total, including installation)? | L18: 1380 | T18: CASTLEDALE | U18: 0.994 | V18: 6.456 | W18: 5.672 | X18: 0.8460346964 | Y18: 32.28 | Z18: 27.31 | AA18: 0.994
T19: CASTLE VALLEY | U19: 1.338 | V19: 7.85 | W19: 7.85 | X19: 0.8295541401 | Y19: 39.25 | Z19: 32.56 | AA19: 1.338
B20: Economic Analysis | T20: CEDAR CITY | U20: 1.182 | V20: 6.684 | W20: 5.412 | X20: 0.8231597846 | Y20: 33.42 | Z20: 27.51 | AA20: 1.182
T21: CEDAR POINT | U21: 1.432 | V21: 6.68 | W21: 6.68 | X21: 0.7856287425 | Y21: 33.4 | Z21: 26.24 | AA21: 1.432
D22: "Before" | E22: "After" | T22: CIRCLEVILLE | U22: 1.072 | V22: 5.934 | W22: 5.092 | X22: 0.8193461409 | Y22: 29.67 | Z22: 24.31 | AA22: 1.072
C23: System Efficiency: | D23: =D6 -> 0.55 | E23: =D8 -> 0.6 | F23: Acre Inches | G23: Estimated Time per Year to Read Soil Moisture Sensors and Analyze Data: | H23: =IF(L10="Yes",((28*((30*2)+(H18*5)))/60),0) -> 65.33333333 | K23: Maximum Potential Yield | L23: =+L29/5 -> 6.444 | M23: Tons | T23: COALVILLE | U23: 1.352 | V23: 5.942 | W23: 3.974 | X23: 0.7724671828 | Y23: 29.71 | Z23: 22.95 | AA23: 1.352
T24: CORINNE | U24: 1.624 | V24: 6.978 | W24: 4.972 | X24: 0.7672685583 | Y24: 34.89 | Z24: 26.77 | AA24: 1.624
C25: Estimated Yield per Acre: | D25: =IF(L25>L31,(((L31/5)*D23)+L33),(((L25/5)*D23)+L33)) -> 3.874 | E25: =IF(L25>L31,(((L31/5)*E23)+L33),(((L25/5)*E23)+L33)) -> 4.114 | F25: Tons | G25: Difference in Yield per Acre: | H25: =E25-D25 -> 0.24 | J25: Tons | K25: Total Acre Inches Available for Crop Production: | L25: =(D14*12) -> 24 | M25: Acre Inches | T25: COTTONWOOD WEIR / EAST BENCH | U25: 2.184 | V25: 6.688 | W25: 6.688 | X25: 0.6734449761 | Y25: 33.44 | Z25: 22.52 | AA25: 2.184
T26: COVE FORT | U26: 1.116 | V26: 5.934 | W26: 4.278 | X26: 0.8119312437 | Y26: 29.67 | Z26: 24.09 | AA26: 1.116
C27: Total Tons Produced: | D27: =+D25*D10 -> 619.84 | E27: =+E25*D12 -> 658.24 | F27: Tons | G27: Difference in Total Tons Produced: | H27: =+E27-D27 -> 38.4 | J27: Tons | K27: Percent of Total Yield that Can be Affected by Efficiency Measures: | L27: =IF($L$8=" "," ",LOOKUP($L8,$T$4:$T$128,$X$4:$X$128)) -> 0.8085040348 | T27: DEER CREEK DAM | U27: 1.406 | V27: 5.92 | W27: 5.92 | X27: 0.7625 | Y27: 29.6 | Z27: 22.57 | AA27: 1.406
T28: DELTA | U28: 1.04 | V28: 7.528 | W28: 6.558 | X28: 0.8618490967 | Y28: 37.64 | Z28: 32.44 | AA28: 1.04
C29: Total Revenue: | D29: =+D27*H6 -> 123968 | E29: =+E27*H6 -> 131648 | G29: Difference in Total Revenue: | H29: =+E29-D29 -> 7680 | K29: Consumptive Use Value (CU): | L29: =IF($L$8=" "," ",LOOKUP($L8,$T$4:$T$128,$Y$4:$Y$128)) -> 32.22 | M29: Inches | T29: DEWEY | U29: 1.054 | V29: 8.668 | W29: 8.668 | X29: 0.8784033226 | Y29: 43.34 | Z29: 38.07 | AA29: 1.054
T30: DUCHESNE | U30: 1.212 | V30: 6.692 | W30: 5.764 | X30: 0.8188882247 | Y30: 33.46 | Z30: 27.4 | AA30: 1.212
C31: Estimated Total Operating Cost: | D31: =('Sample Analysis Sheet'!H96*D35)+H10 -> 65554.4224 | E31: =(P96*E35)+H12 -> 65582.81731 | G31: Difference in Estimated Total Operating Cost: | H31: =+E31-D31 -> 28.3949152 | K31: Net Irrigation Requirement (NIR): | L31: =IF($L$8=" "," ",LOOKUP($L8,$T$4:$T$128,$Z$4:$Z$128)) -> 26.05 | M31: Inches | T31: DUGWAY | U31: 1.062 | V31: 7.334 | W31: 6.42 | X31: 0.8551949823 | Y31: 36.67 | Z31: 31.36 | AA31: 1.062
T32: ELBERTA | U32: 1.244 | V32: 7.154 | W32: 5.886 | X32: 0.8261112664 | Y32: 35.77 | Z32: 29.55 | AA32: 1.244
C33: Total Inches of Water Required to Produce Max Potential Yield Given the Efficiency of the System: | D33: =+((L$23-L$33)*5)/D$23 -> 47.36363636 | E33: =+((L$23-L$33)*5)/E$23 -> 43.41666667 | F33: Inches | G33: Estimated Difference in Total Net Revenue: | H33: =H29-H31 -> 7651.605085 | K33: Base Yield/Acre: | L33: =+(L29-L31)/5 -> 1.234 | M33: Tons | T33: EMERY | U33: 1.016 | V33: 5.938 | W33: 5.264 | X33: 0.8288986191 | Y33: 29.69 | Z33: 24.61 | AA33: 1.016
T34: ENTERPRISE/ BERYL | U34: 1.124 | V34: 7.078 | W34: 5.926 | X34: 0.8411980786 | Y34: 35.39 | Z34: 29.77 | AA34: 1.124
C35: Total Acres in Production: | D35: =D10 -> 160 | E35: =D12 -> 160 | F35: Acres | G35: Estimated Profit Per Hour for Soil Moisture Sensor Reading and Data Analysis: | H35: =IF($L$10="Yes",(IF(D18="Yes",($H$33/$H$23),((H33*(IF($L14=" "," ",LOOKUP($L14,$P$4:$P$9,$Q$4:$Q$9))))/H23))),0) -> 21.08095278 | K35: Approximate Payoff Period for Project (Years): | L35: =IF(H33>0,+(ABS((LN(1-((L6/12)*((H8+L18)/(H33/12)))))/(LN(1+(L6/12))))/12),"Will Never Pay Off") -> 1.52337145 | M35: Years | T35: EPHRAIM | U35: 1.248 | V35: 6.62 | W35: 6.62 | X35: 0.8114803625 | Y35: 33.1 | Z35: 26.86 | AA35: 1.248
T36: ESCALANTE | U36: 1.186 | V36: 7.778 | W36: 6.638 | X36: 0.8475186423 | Y36: 38.89 | Z36: 32.96 | AA36: 1.186
T37: ESKDALE | U37: 0.966 | V37: 7.026 | W37: 7.026 | X37: 0.8625106746 | Y37: 35.13 | Z37: 30.3 | AA37: 0.966
B38: Summary | T38: FAIRFIELD | U38: 1.234 | V38: 6.444 | W38: 5.02 | X38: 0.8085040348 | Y38: 32.22 | Z38: 26.05 | AA38: 1.234
C39: "Before & After" Figures | G39: Basic Data | K39: Economic Results | T39: FARMINGTON USU | U39: 2.008 | V39: 7.398 | W39: 4.384 | X39: 0.7285752906 | Y39: 36.99 | Z39: 26.95 | AA39: 2.008
T40: FERRON | U40: 1.046 | V40: 6.106 | W40: 5.248 | X40: 0.8286930888 | Y40: 30.53 | Z40: 25.3 | AA40: 1.046
C41: "Before" System Efficiency: | D41: =D23 -> 0.55 | G41: Total Acres in Production: | H41: =D10 -> 160 | I41: Acres | K41: Estimated Profit per Hour for Soil Moisture Sensor Reading: | L41: =H35 -> 21.08095278 | T41: FILLMORE | U41: 1.45 | V41: 7.14 | W41: 5.076 | X41: 0.7969187675 | Y41: 35.7 | Z41: 28.45 | AA41: 1.45
C42: "After" System Efficiency: | D42: =E23 -> 0.6 | G42: Difference in Yield Per Acre: | H42: =H25 -> 0.24 | I42: Tons | T42: FISH SPRINGS | U42: 1.104 | V42: 7.426 | W42: 7.426 | X42: 0.8513331538 | Y42: 37.13 | Z42: 31.61 | AA42: 1.104
C43: Before Yield per Acre: | D43: =D25 -> 3.874 | E43: Tons | G43: Difference in Total Tons Produced: | H43: =H27 -> 38.4 | I43: Tons | K43: Difference in Total Revenue: | L43: =H29 -> 7680 | T43: FLAMING GORGE | U43: 1.302 | V43: 5.818 | W43: 5.818 | X43: 0.7762117566 | Y43: 29.09 | Z43: 22.58 | AA43: 1.302
C44: After Yield per Acre: | D44: =E25 -> 4.114 | E44: Tons | G44: Maximum Potential Yield: | H44: =L23 -> 6.444 | I44: Tons | T44: FORT DUCHESNE | U44: 0.934 | V44: 6.976 | W44: 6.306 | X44: 0.8661123853 | Y44: 34.88 | Z44: 30.21 | AA44: 0.934
C45: Before Acres: | D45: =D33 -> 47.36363636 | E45: Acres | G45: Base Yield per Acre: | H45: =L33 -> 1.234 | I45: Tons | K45: Difference in Total Costs: | L45: =H31 -> 28.3949152 | T45: FRUITLAND | U45: 1.294 | V45: 5.822 | W45: 4.582 | X45: 0.7777396084 | Y45: 29.11 | Z45: 22.64 | AA45: 1.294
C46: After Acres: | D46: =E33 -> 43.41666667 | E46: Acres | G46: Percent of Max that can be Affected: | H46: =L27 -> 0.8085040348 | T46: GARFIELD | U46: 1.79 | V46: 6.256 | W46: 4.064 | X46: 0.7138746803 | Y46: 31.28 | Z46: 22.33 | AA46: 1.79
C47: Before Total Tons Produced: | D47: =D27 -> 619.84 | E47: Tons | G47: Total Acre Inches Available: | H47: =L25 -> 24 | I47: Ac In | K47: Estimated Total Additional Net Revenue per Year: | L47: =H33 -> 7651.605085 | T47: GARRISON | U47: 1.01 | V47: 7.22 | W47: 6.352 | X47: 0.8601108033 | Y47: 36.1 | Z47: 31.05 | AA47: 1.01
C48: After Total Tons Produced: | D48: =E27 -> 658.24 | E48: Tons | G48: Consumptive Use Value: | H48: =L29 -> 32.22 | I48: Inches | T48: GRANTSVILLE | U48: 1.31 | V48: 6.854 | W48: 6.854 | X48: 0.8088707324 | Y48: 34.27 | Z48: 27.72 | AA48: 1.31
C49: Before Total Revenue: | D49: =D29 -> 123968 | G49: Net Irrigation Requirement: | H49: =L31 -> 26.05 | I49: Inches | K49: Approximate Payoff Period for Project (in Years): | L49: =L35 -> 1.52337145 | T49: GREEN RIVER | U49: 1.03 | V49: 8.396 | W49: 7.896 | X49: 0.8773225345 | Y49: 41.98 | Z49: 36.83 | AA49: 1.03
C50: After Total Revenue: | D50: =E29 -> 131648 | G50: Sensor Reading Hr/Yr: | H50: =D35 -> 160 | I50: Hours | T50: GROUSE CREEK | U50: 1.134 | V50: 5.942 | W50: 4.68 | X50: 0.8091551666 | Y50: 29.71 | Z50: 24.04 | AA50: 1.134
C51: Before Estimated Cost: | D51: =D31 -> 65554.4224 | T51: GUNNISON | U51: 0.974 | V51: 6.716 | W51: 5.61 | X51: 0.8549731983 | Y51: 33.58 | Z51: 28.71 | AA51: 0.974
C52: After Estimated Cost: | D52: =E31 -> 65582.81731 | T52: HANKSVILLE | U52: 0.916 | V52: 9.032 | W52: 8.462 | X52: 0.8985828167 | Y52: 45.16 | Z52: 40.58 | AA52: 0.916
C53: Before Total Inches of Water Required for Max: | D53: =D33 -> 47.36363636 | E53: Inches | T53: HANNA | U53: 1.168 | V53: 5.338 | W53: 4.098 | X53: 0.7811914575 | Y53: 26.69 | Z53: 20.85 | AA53: 1.168
C54: After Total Inches of Water Required for Max: | D54: =E33 -> 43.41666667 | E54: Inches | T54: HEBER | U54: 1.242 | V54: 6.298 | W54: 4.096 | X54: 0.8027945379 | Y54: 31.49 | Z54: 25.28 | AA54: 1.242
T55: HENRIEVILLE | U55: 1.138 | V55: 6.73 | W55: 5.512 | X55: 0.8309063893 | Y55: 33.65 | Z55: 27.96 | AA55: 1.138
T56: HUNTSVILLE | U56: 1.478 | V56: 6.254 | W56: 3.198 | X56: 0.7636712504 | Y56: 31.27 | Z56: 23.88 | AA56: 1.478
T57: IBAPAH | U57: 1.052 | V57: 5.84 | W57: 4.804 | X57: 0.8198630137 | Y57: 29.2 | Z57: 23.94 | AA57: 1.052
T58: IOSEPA | U58: 1.068 | V58: 8.246 | W58: 6.946 | X58: 0.8704826583 | Y58: 41.23 | Z58: 35.89 | AA58: 1.068
T59: JENSEN | U59: 1.048 | V59: 7.304 | W59: 6.402 | X59: 0.856516977 | Y59: 36.52 | Z59: 31.28 | AA59: 1.048
T60: KAMAS | U60: 1.22 | V60: 5.22 | W60: 3.038 | X60: 0.7662835249 | Y60: 26.1 | Z60: 20 | AA60: 1.22
T61: KANAB | U61: 1.496 | V61: 8.52 | W61: 6.75 | X61: 0.8244131455 | Y61: 42.6 | Z61: 35.12 | AA61: 1.496
T62: KANOSH | U62: 1.482 | V62: 7.058 | W62: 5.058 | X62: 0.790025503 | Y62: 35.29 | Z62: 27.88 | AA62: 1.482
B63: Crop Budgets | S63: Labor Hours per Year per Acre | T63: KOOSHAREM | U63: 1.022 | V63: 5.186 | W63: 4.27 | X63: 0.802930968 | Y63: 25.93 | Z63: 20.82 | AA63: 1.022
B64: "Before" Scenario | J64: "After" Scenario | R64: High-Efficiency Flood (Graded Borders) | S64: 0.765 | T64: LAKETOWN | U64: 1.2 | V64: 5.39 | W64: 3.986 | X64: 0.7773654917 | Y64: 26.95 | Z64: 20.95 | AA64: 1.2
E65: Quantity per acre | F65: Unit | G65: Cost per unit | H65: Projected Cost per Acre | M65: Quantity per acre | N65: Unit | O65: Cost per unit | P65: Projected Cost per Acre | R65: Improved Flood | S65: 1.8 | T65: LASAL | U65: 1.416 | V65: 6.292 | W65: 4.892 | X65: 0.7749523204 | Y65: 31.46 | Z65: 24.38 | AA65: 1.416
B66: Operating costs | J66: Operating costs | R66: Pivot | S66: 0.6352941176 | T66: LAVERKIN | U66: 1.316 | V66: 9.358 | W66: 7.826 | X66: 0.8593716606 | Y66: 46.79 | Z66: 40.21 | AA66: 1.316
C67: Fertilization | K67: Fertilization | R67: Unimproved Flood | S67: 7.2 | T67: LEVAN | U67: 1.306 | V67: 6.66 | W67: 4.764 | X67: 0.8039039039 | Y67: 33.3 | Z67: 26.77 | AA67: 1.306
D68: Phosphate (11-52-0) | E68: 192 | F68: pounds | G68: 0.63 | H68: =E68*G68 -> 120.96 | L68: Phosphate (11-52-0) | M68: 192 | N68: pounds | O68: 0.63 | P68: =M68*O68 -> 120.96 | R68: Wheel Line | S68: 1.028571429 | T68: LOA | U68: 1.024 | V68: 5.234 | W68: 4.628 | X68: 0.804356133 | Y68: 26.17 | Z68: 21.05 | AA68: 1.024
D69: Custom application | E69: 1 | F69: acre | G69: 7.82 | H69: =E69*G69 -> 7.82 | L69: Custom application | M69: 1 | N69: acre | O69: 7.82 | P69: =M69*O69 -> 7.82 | T69: LOGAN 5SW | U69: 1.466 | V69: 6.328 | W69: 3.936 | X69: =+Z69/Y69 -> 0.7683312263 | Y69: 31.64 | Z69: 24.31 | AA69: =+(Y69-Z69)/5 -> 1.466
C70: Pesticides/herbicides | K70: Pesticides/herbicides | T70: LOGAN RADIO | U70: 1.588 | V70: 6.732 | W70: 4.666 | X70: 0.7641117053 | Y70: 33.66 | Z70: 25.72 | AA70: 1.588
D71: Permethrin | E71: 8 | F71: oz | G71: 0.98 | H71: 7.84 | L71: Permethrin | M71: 8 | N71: oz | O71: 0.98 | P71: =M71*O71 -> 7.84 | R71: One or More Farm Laborers | T71: LOGAN USU | U71: 1.74 | V71: 6.318 | W71: 4.138 | X71: 0.7245963913 | Y71: 31.59 | Z71: 22.89 | AA71: 1.74
D72: Gramoxone Extra | E72: 1.5 | F72: oz | G72: 5.85 | H72: 8.775 | L72: Gramoxone Extra | M72: 1.5 | N72: oz | O72: 5.85 | P72: =M72*O72 -> 8.775 | R72: Owner and/or Farm Manager | T72: MANILA | U72: 1.198 | V72: 5.496 | W72: 4.688 | X72: 0.7820232897 | Y72: 27.48 | Z72: 21.49 | AA72: 1.198
D73: Pursuit | E73: 4 | F73: oz | G73: 4.4609 | H73: 17.8436 | L73: Pursuit | M73: 4 | N73: oz | O73: 4.4609 | P73: =M73*O73 -> 17.8436 | T73: MANTI | U73: 1.314 | V73: 6.406 | W73: 4.788 | X73: 0.7948798002 | Y73: 32.03 | Z73: 25.46 | AA73: 1.314
D74: Custom application | E74: 2 | F74: acre | G74: 7.82 | H74: 15.64 | L74: Custom application | M74: 2 | N74: acre | O74: 7.82 | P74: =M74*O74 -> 15.64 | T74: MARYSVALE | U74: 0.976 | V74: 6.308 | W74: 5.434 | X74: 0.8452758402 | Y74: 31.54 | Z74: 26.66 | AA74: 0.976
C75: Irrigation | K75: Irrigation | M75: 7 | N75: irrigations | T75: MEXICAN HAT | U75: 0.99 | V75: 9.144 | W75: 8.416 | X75: 0.8917322835 | Y75: 45.72 | Z75: 40.77 | AA75: 0.99
D76: =L12 -> Wheel Line | L76: =L14 -> Wheel Line | T76: MIDVALE | U76: 1.376 | V76: 7.468 | W76: 5.576 | X76: 0.815747188 | Y76: 37.34 | Z76: 30.46 | AA76: 1.376
D77: Labor | E77: =LOOKUP(D76,$R$64:$R$68,$S$64:$S$68) -> 1.028571429 | F77: hours | G77: =H14 -> 12 | H77: 12.34285714 | L77: Labor | M77: =(LOOKUP(L76,$R$64:$R$68,$S$64:$S$68))+(H23/E35) -> 1.436904762 | N77: hours | O77: =H14 -> 12 | P77: =M77*O77 -> 17.24285714 | T77: MILFORD | U77: 1.074 | V77: 7.08 | W77: 5.97 | X77: 0.8483050847 | Y77: 35.4 | Z77: 30.03 | AA77: 1.074
D78: Water assessment | E78: 1 | F78: share | G78: 20 | H78: 20 | L78: Water assessment | M78: 1 | N78: share | O78: 20 | P78: =M78*O78 -> 20 | T78: MOAB | U78: 1.172 | V78: 8.61 | W78: 7.536 | X78: 0.8638792102 | Y78: 43.05 | Z78: 37.19 | AA78: 1.172
D79: Repairs/maintenance | E79: 1 | F79: acre | G79: 2.3 | H79: 2.3 | L79: Repairs/maintenance | M79: 1 | N79: acre | O79: 2.3 | P79: =M79*O79 -> 2.3 | T79: MODENA | U79: 1.124 | V79: 7.432 | W79: 6.262 | X79: 0.8487621098 | Y79: 37.16 | Z79: 31.54 | AA79: 1.124
D80: Pumping | E80: 1 | F80: acre | G80: 0 | H80: 0 | L80: Pumping | M80: 1 | N80: acre | O80: 0 | P80: =M80*O80 -> 0 | T80: MONTICELLO | U80: 1.4 | V80: 6.032 | W80: 4.292 | X80: 0.7679045093 | Y80: 30.16 | Z80: 23.16 | AA80: 1.4
C81: Harvesting | K81: Harvesting | T81: MORGAN | U81: 1.342 | V81: 6.334 | W81: 3.894 | X81: 0.7881275655 | Y81: 31.67 | Z81: 24.96 | AA81: 1.342
D82: Swathing | E82: 4 | F82: acre | G82: 4.034285062 | H82: 16.13714025 | L82: Swathing | M82: 4 | N82: acre | O82: 4.034285062 | P82: =M82*O82 -> 16.13714025 | T82: MORONI | U82: 1.056 | V82: 6.686 | W82: 5.488 | X82: 0.8420580317 | Y82: 33.43 | Z82: 28.15 | AA82: 1.056
D83: Raking | E83: 4 | F83: acre | G83: 1.392278801 | H83: 5.569115203 | L83: Raking | M83: 4 | N83: acre | O83: 1.392278801 | P83: =M83*O83 -> 5.569115203 | T83: NEOLA | U83: 1.088 | V83: 5.848 | W83: 4.908 | X83: 0.8139534884 | Y83: 29.24 | Z83: 23.8 | AA83: 1.088
D84: Baling | E84: =D25 -> 3.874 | F84: tons | G84: 4.79 | H84: =E84*G84 -> 18.55646 | L84: Baling | M84: =E25 -> 4.114 | N84: tons | O84: 4.79 | P84: =M84*O84 -> 19.70606 | T84: NEPHI | U84: 1.394 | V84: 7.142 | W84: 5.232 | X84: 0.804816578 | Y84: 35.71 | Z84: 28.74 | AA84: 1.394
D85: Hauling/stacking | E85: =D25 -> 3.874 | F85: tons | G85: 3.63 | H85: =E85*G85 -> 14.06262 | L85: Hauling/stacking | M85: =E25 -> 4.114 | N85: tons | O85: 3.63 | P85: =M85*O85 -> 14.93382 | T85: NEW HARMONY | U85: 1.468 | V85: 7.108 | W85: 4.714 | X85: 0.7934721441 | Y85: 35.54 | Z85: 28.2 | AA85: 1.468
C86: Crop insurance (75% Yield, 100% Price) | E86: 1 | F86: acre | G86: 19.11 | H86: 19.11 | K86: Crop insurance (75% Yield, 100% Price) | M86: 1 | N86: acre | O86: 19.11 | P86: =M86*O86 -> 19.11 | T86: OAK CITY | U86: 1.368 | V86: 7.35 | W86: 5.662 | X86: 0.813877551 | Y86: 36.75 | Z86: 29.91 | AA86: 1.368
C87: Interest on operating capital | G87: 0.0761 | H87: =((SUM(H68:H74)*G87*(6/12))+SUM(H77:H85)*G87*(3/12)) -> 8.498950594 | K87: Interest on operating capital | O87: 0.0761 | P87: =((SUM(P68:P74)*O87*(6/12))+SUM(P77:P85)*O87*(3/12)) -> 8.630618814 | T87: OGDEN SUGAR FACTORY | U87: 1.714 | V87: 7.42 | W87: 5.138 | X87: 0.7690026954 | Y87: 37.1 | Z87: 28.53 | AA87: 1.714
D88: Subtotal | H88: =SUM(H68:H87) -> 295.4557432 | L88: Subtotal | P88: =SUM(P68:P87) -> 302.5082114 | T88: ORDERVILLE | U88: 1.248 | V88: 6.938 | W88: 4.922 | X88: 0.8201210724 | Y88: 34.69 | Z88: 28.45 | AA88: 1.248
T89: PANGUITCH | U89: 1.138 | V89: 5.982 | W89: 5.058 | X89: 0.8097626212 | Y89: 29.91 | Z89: 24.22 | AA89: 1.138
B90: Ownership costs (excludes cost of land) | J90: Ownership costs (excludes cost of land) | T90: PARK VALLEY | U90: 1.268 | V90: 5.924 | W90: 4.746 | X90: 0.7859554355 | Y90: 29.62 | Z90: 23.28 | AA90: 1.268
C91: Farm insurance | E91: 1 | F91: acre | G91: 2 | H91: 2 | K91: Farm insurance | M91: 1 | N91: acre | O91: 2 | P91: =M91*O91 -> 2 | T91: PAROWAN | U91: 1.31 | V91: 6.674 | W91: 5.182 | X91: 0.8037159125 | Y91: 33.37 | Z91: 26.82 | AA91: 1.31
C92: Machinery ownership costs | E92: 1 | F92: acre | G92: 49.6343968 | H92: 49.6343968 | K92: Machinery ownership costs | M92: 1 | N92: acre | O92: 49.6343968 | P92: =M92*O92 -> 49.6343968 | T92: PARTOUN | U92: 0.972 | V92: 6.638 | W92: 6.638 | X92: 0.8535703525 | Y92: 33.19 | Z92: 28.33 | AA92: 0.972
C93: Irrigation equipment costs | E93: 1 | F93: acre | G93: 8.25 | H93: 8.25 | K93: Irrigation equipment costs | M93: 1 | N93: acre | O93: 8.25 | P93: =M93*O93 -> 8.25 | T93: PELICAN LAKE/OURAY | U93: 1.224 | V93: 7.934 | W93: 7.22 | X93: 0.8457272498 | Y93: 39.67 | Z93: 33.55 | AA93: 1.224
D94: Total Ownership Costs | H94: =SUM(H91:H93) -> 59.8843968 | L94: Total Ownership Costs | P94: =SUM(P91:P93) -> 59.8843968 | T94: PLEASANT GROVE | U94: 1.556 | V94: 7.05 | W94: 4.804 | X94: 0.7792907801 | Y94: 35.25 | Z94: 27.47 | AA94: 1.556
T95: PLEASANT VALLEY/MYTON | U95: 1.028 | V95: 7.194 | W95: 6.522 | X95: 0.8571031415 | Y95: 35.97 | Z95: 30.83 | AA95: 1.028
D96: Total Costs | H96: =H94+H88 -> 355.34014 | L96: Total Costs | P96: =P94+P88 -> 362.3926082 | T96: PRICE | U96: 1.15 | V96: 7.192 | W96: 6.19 | X96: 0.8401001112 | Y96: 35.96 | Z96: 30.21 | AA96: 1.15
T97: PROVO | U97: 1.854 | V97: 7.474 | W97: 4.828 | X97: 0.7519400589 | Y97: 37.37 | Z97: 28.1 | AA97: 1.854
T98: RANDOLPH | U98: 1.06 | V98: 4.058 | W98: 4.058 | X98: 0.7387875801 | Y98: 20.29 | Z98: 14.99 | AA98: 1.06
T99: RICHFIELD | U99: 1.038 | V99: 6.834 | W99: 5.944 | X99: 0.8481123793 | Y99: 34.17 | Z99: 28.98 | AA99: 1.038
T100: RICHMOND | U100: 1.684 | V100: 6.964 | W100: 4.466 | X100: 0.7581849512 | Y100: 34.82 | Z100: 26.4 | AA100: 1.684
T101: RIVERDALE | U101: 1.798 | V101: 6.724 | W101: 4.262 | X101: 0.7325996431 | Y101: 33.62 | Z101: 24.63 | AA101: 1.798
T102: ROOSEVELT | U102: 1.104 | V102: 7.47 | W102: 6.668 | X102: 0.8522088353 | Y102: 37.35 | Z102: 31.83 | AA102: 1.104
T103: RUSH VALLEY/ JOHNSON PASS | U103: 1.588 | V103: 6.692 | W103: 6.692 | X103: 0.7627017334 | Y103: 33.46 | Z103: 25.52 | AA103: 1.588
T104: SALINA | U104: 1.08 | V104: 6.916 | W104: 5.732 | X104: 0.8438403702 | Y104: 34.58 | Z104: 29.18 | AA104: 1.08
T105: SALT LAKE CITY | U105: 1.592 | V105: 6.992 | W105: 4.856 | X105: 0.7723112128 | Y105: 34.96 | Z105: 27 | AA105: 1.592
T106: SANDY RANCH | U106: 1.012 | V106: 6.706 | W106: 5.93 | X106: 0.8490903668 | Y106: 33.53 | Z106: 28.47 | AA106: 1.012
T107: SCIPIO | U107: 1.224 | V107: 6.458 | W107: 4.794 | X107: 0.810467637 | Y107: 32.29 | Z107: 26.17 | AA107: 1.224
T108: SCOFIELD DAM | U108: 0 | V108: 0 | W108: -1.786 | AA108: 0
T109: SNOWVILLE | U109: 1.24 | V109: 6.344 | W109: 4.948 | X109: 0.8045397226 | Y109: 31.72 | Z109: 25.52 | AA109: 1.24
T110: SPANISH FORK PWR PLNT | U110: 1.782 | V110: 7.11 | W110: 4.466 | X110: 0.7493670886 | Y110: 35.55 | Z110: 26.64 | AA110: 1.782
T111: ST GEORGE | U111: 0.976 | V111: 9.678 | W111: 8.554 | X111: 0.8991527175 | Y111: 48.39 | Z111: 43.51 | AA111: 0.976
T112: THIOKOL/ HOWELL | U112: 1.412 | V112: 6.964 | W112: 5.316 | X112: 0.7972429638 | Y112: 34.82 | Z112: 27.76 | AA112: 1.412
T113: TOOELE | U113: 1.728 | V113: 6.734 | W113: 4.398 | X113: 0.7433917434 | Y113: 33.67 | Z113: 25.03 | AA113: 1.728
T114: TREMONTON | U114: 1.706 | V114: 6.716 | W114: 4.6 | X114: 0.7459797499 | Y114: 33.58 | Z114: 25.05 | AA114: 1.706
T115: TRENTON/ LEWISTON | U115: 1.42 | V115: 6.232 | W115: 3.912 | X115: 0.7721437741 | Y115: 31.16 | Z115: 24.06 | AA115: 1.42
T116: TROPIC | U116: 1.212 | V116: 6.28 | W116: 4.922 | X116: 0.8070063694 | Y116: 31.4 | Z116: 25.34 | AA116: 1.212
T117: UNIV OF UTAH | U117: 1.782 | V117: 6.868 | W117: 4.376 | X117: 0.7405358183 | Y117: 34.34 | Z117: 25.43 | AA117: 1.782
T118: UTAH LAKE LEHI | U118: 1.262 | V118: 6.914 | W118: 5.524 | X118: 0.8174717964 | Y118: 34.57 | Z118: 28.26 | AA118: 1.262
T119: VERNAL | U119: 1.084 | V119: 7.036 | W119: 6.112 | X119: 0.8459351904 | Y119: 35.18 | Z119: 29.76 | AA119: 1.084
T120: VERNON | U120: 1.13 | V120: 6.458 | W120: 5.266 | X120: 0.825023227 | Y120: 32.29 | Z120: 26.64 | AA120: 1.13
T121: VEYO | U121: 1.458 | V121: 8.166 | W121: 6.21 | X121: 0.8214548126 | Y121: 40.83 | Z121: 33.54 | AA121: 1.458
T122: WAH WAH RANCH | U122: 0.964 | V122: 6.958 | W122: 6.282 | X122: 0.8614544409 | Y122: 34.79 | Z122: 29.97 | AA122: 0.964
T123: WANSHIP | U123: 1.322 | V123: 5.87 | W123: 3.916 | X123: 0.7747870528 | Y123: 29.35 | Z123: 22.74 | AA123: 1.322
T124: WENDOVER | U124: 0.838 | V124: 6.392 | W124: 5.894 | X124: 0.8688986233 | Y124: 31.96 | Z124: 27.77 | AA124: 0.838
T125: WOODRUFF | U125: 0.964 | V125: 4.352 | W125: 3.422 | X125: 0.7784926471 | Y125: 21.76 | Z125: 16.94 | AA125: 0.964
T126: ZION NP | U126: 1.63 | V126: 8.87 | W126: 8.87 | X126: 0.8162344983 | Y126: 44.35 | Z126: 36.2 | AA126: 1.63

Sheet Assumptions
B1: Value or Term | C1: How it's calculated in the spreadsheet OR its definition
B2: Acre inches that efficiency measures make available for additional yield and other uses (wildlife, etc.) | C2: Total acre inches available x ("after" percent efficiency - "before" percent efficiency)
B3: Approximate payoff period for project (years) | C3: Estimated number of years it will take to pay for the planned irrigation system improvements assuming that all additional net revenue is paid toward the loan each year until the loan is completely paid off (based on the interest rate entered by the user … should be used for economic analysis regardless of whether or not the producer actually needs to borrow money in order to fund the project)
B4: Base yield | C4: (CU - NIR) / 5
B5: Consumptive use value (CU) | C5: Total inches of water that the crop is able to utilize for growth given local climate and precipitation conditions
B6: Difference in tons produced | C6: "After" tons produced - "before" tons produced
B7: Difference in total revenue | C7: "After" total revenue - "before" total revenue
B8: Difference in yield per acre | C8: "After" yield - "before" yield
B9: Estimated profit per hour for soil moisture sensor reading | C9: ((Estimated total additional net revenue) x (percent of total efficiency improvement that can be attributed to IWM as opposed to the irrigation system alone)) / estimated time per year to read soil moisture sensors
B10: Estimated time per year to read soil moisture sensors and analyze data | C10: ((30 minutes x 2 times per week to collect data) + (5 minutes per sensor to analyze data)) x 28 weeks
B11: Estimated total additional net revenue | C11: Difference in total revenue - estimated additional production costs
B12: Estimated yield per acre if water availability is a limiting factor | C12: ((Acre inches available / 5) x (percent system efficiency)) + base yield
B13: Estimated yield per acre if water availability is not a limiting factor | C13: ((NIR / 5) x (percent system efficiency)) + base yield
B14: Inches of water required per ton of yield | C14: Assumed to be equal to 5 inches
B15: Labor costs | C15: Determined by user
B16: Maximum potential yield | C16: CU / 5 (This assumes a 100% efficient irrigation system, which is not possible to achieve under actual field conditions)
B17: Net irrigation requirement (NIR) | C17: Total inches of irrigation water required to make up the difference between average precipitation and CU
B18: Percent of total efficiency improvement that can be attributed to IWM as opposed to the irrigation system alone | C18: Unimproved flood: 90%; Improved flood: 80%; Wheel line: 40%; Pivot: 20%; High-Efficiency Flood/Graded Borders: 90%
B19: Percent of total yield that can be affected by efficiency measures | C19: NIR / CU
B20: System efficiency | C20: Determined by user
B21: Total acre inches available for crop production | C21: (Water right or available water in acre feet per acre) x 12
B22: Total acres in production | C22: Determined by user
B23: Total inches required to produce maximum potential yield given the efficiency of the system | C23: ((Maximum yield - base yield) x 5) / (percent system efficiency)
B24: Total revenue | C24: Total tons produced x expected market value of the crop
B25: Total tons produced | C25: Estimated yield x total acres in production

Sheet Climate Station Data
A1: Station Name 2007 | B1: Base Yield | C1: Max Yield | D1: Yield Within Influence | E1: % Within Influence | F1: CU Value for Alfalfa | G1: NIR (annual) | H1: Alt. Base Yield
B2: 2006 | C2: 2008 | D2: 2008 | E2: 2008 | F2: 2008 | G2: 2008 | H2: 2008
A3: ALLEN'S RANCH | B3: 1.098 | C3: 6.734 | D3: 6.734 | E3: =+G3/F3 -> 0.8369468369 | F3: 33.67 | G3: 28.18 | H3: =+(F3-G3)/5 -> 1.098
A4: ALPINE | B4: 1.534 | C4: 6.942 | D4: 4.636 | E4: =+G4/F4 -> 0.7790262172 | F4: 34.71 | G4: 27.04 | H4: =+(F4-G4)/5 -> 1.534
A5: ALTAMONT | B5: 1.074 | C5: 5.576 | D5: 4.584 | E5: 0.8073888092 | F5: 27.88 | G5: 22.51 | H5: 1.074
A6: ALTON | B6: 1.314 | C6: 5.79 | D6: 3.746 | E6: 0.7730569948 | F6: 28.95 | G6: 22.38 | H6: 1.314
A7: ANTIMONY | B7: 0.84 | C7: 5.058 | D7: 4.63 | E7: 0.8339264531 | F7: 25.29 | G7: 21.09 | H7: 0.84
A8: BEAR RIVER BAY | B8: 1.428 | C8: 6.148 | D8: 4.51 | E8: 0.7677293429 | F8: 30.74 | G8: 23.6 | H8: 1.428
A9: BEAVER | B9: 1.19 | C9: 5.904 | D9: 4.666 | E9: 0.7984417344 | F9: 29.52 | G9: 23.57 | H9: 1.19
A10: BIRDSEYE | B10: 1.13 | C10: 5.554 | D10: 3.762 | E10: 0.796543032 | F10: 27.77 | G10: 22.12 | H10: 1.13
A11: BLACK ROCK | B11: 1.064 | C11: 7.112 | D11: 7.112 | E11: 0.8503937008 | F11: 35.56 | G11: 30.24 | H11: 1.064
A12: BLANDING | B12: 1.344 | C12: 7.02 | D12: 5.354 | E12: 0.8085470085 | F12: 35.1 | G12: 28.38 | H12: 1.344
A13: BLUFF | B13: 0.986 | C13: 8.458 | D13: 7.5 | E13: 0.8834239773 | F13: 42.29 | G13: 37.36 | H13: 0.986
A14: BOULDER | B14: 1.18 | C14: 6.02 | D14: 4.862 | E14: 0.803986711 | F14: 30.1 | G14: 24.2 | H14: 1.18
A15: BRIGHAM CITY | B15: 1.738 | C15: 7.334 | D15: 4.572 | E15: 0.7630215435 | F15: 36.67 | G15: 27.98 | H15: 1.738
A16: CALLAO | B16: 0.936 | C16: 6.754 | D16: 6.188 | E16: 0.8614154575 | F16: 33.77 | G16: 29.09 | H16: 0.936
A17: CASTLEDALE | B17: 0.994 | C17: 6.456 | D17: 5.672 | E17: 0.8460346964 | F17: 32.28 | G17: 27.31 | H17: 0.994
A18: CASTLE VALLEY | B18: 1.338 | C18: 7.85 | D18: 7.85 | E18: 0.8295541401 | F18: 39.25 | G18: 32.56 | H18: 1.338
A19: CEDAR CITY | B19: 1.182 | C19: 6.684 | D19: 5.412 | E19: 0.8231597846 | F19: 33.42 | G19: 27.51 | H19: 1.182
A20: CEDAR POINT | B20: 1.432 | C20: 6.68 | D20: 6.68 | E20: 0.7856287425 | F20: 33.4 | G20: 26.24 | H20: 1.432
A21: CIRCLEVILLE | B21: 1.072 | C21: 5.934 | D21: 5.092 | E21: 0.8193461409 | F21: 29.67 | G21: 24.31 | H21: 1.072
A22: COALVILLE | B22: 1.352 | C22: 5.942 | D22: 3.974 | E22: 0.7724671828 | F22: 29.71 | G22: 22.95 | H22: 1.352
A23: CORINNE | B23: 1.624 | C23: 6.978 | D23: 4.972 | E23: 0.7672685583 | F23: 34.89 | G23: 26.77 | H23: 1.624
A24: COTTONWOOD WEIR / EAST BENCH | B24: 2.184 | C24: 6.688 | D24: 6.688 | E24: 0.6734449761 | F24: 33.44 | G24: 22.52 | H24: 2.184
A25: COVE FORT | B25: 1.116 | C25: 5.934 | D25: 4.278 | E25: 0.8119312437 | F25: 29.67 | G25: 24.09 | H25: 1.116
A26: DEER CREEK DAM | B26: 1.406 | C26: 5.92 | D26: 5.92 | E26: 0.7625 | F26: 29.6 | G26: 22.57 | H26: 1.406
A27: DELTA | B27: 1.04 | C27: 7.528 | D27: 6.558 | E27: 0.8618490967 | F27: 37.64 | G27: 32.44 | H27: 1.04
A28: DEWEY | B28: 1.054 | C28: 8.668 | D28: 8.668 | E28: 0.8784033226 | F28: 43.34 | G28: 38.07 | H28: 1.054
A29: DUCHESNE | B29: 1.212 | C29: 6.692 | D29: 5.764 | E29: 0.8188882247 | F29: 33.46 | G29: 27.4 | H29: 1.212
A30: DUGWAY | B30: 1.062 | C30: 7.334 | D30: 6.42 | E30: 0.8551949823 | F30: 36.67 | G30: 31.36 | H30: 1.062
A31: ELBERTA | B31: 1.244 | C31: 7.154 | D31: 5.886 | E31: 0.8261112664 | F31: 35.77 | G31: 29.55 | H31: 1.244
A32: EMERY | B32: 1.016 | C32: 5.938 | D32: 5.264 | E32: 0.8288986191 | F32: 29.69 | G32: 24.61 | H32: 1.016
A33: ENTERPRISE/ BERYL | B33: 1.124 | C33: 7.078 | D33: 5.926 | E33: 0.8411980786 | F33: 35.39 | G33: 29.77 | H33: 1.124
A34: EPHRAIM | B34: 1.248 | C34: 6.62 | D34: 6.62 | E34: 0.8114803625 | F34: 33.1 | G34: 26.86 | H34: 1.248
A35: ESCALANTE | B35: 1.186 | C35: 7.778 | D35: 6.638 | E35: 0.8475186423 | F35: 38.89 | G35: 32.96 | H35: 1.186
A36: ESKDALE | B36: 0.966 | C36: 7.026 | D36: 7.026 | E36: 0.8625106746 | F36: 35.13 | G36: 30.3 | H36: 0.966
A37: FAIRFIELD | B37: 1.234 | C37: 6.444 | D37: 5.02 | E37: 0.8085040348 | F37: 32.22 | G37: 26.05 | H37: 1.234
A38: FARMINGTON USU | B38: 2.008 | C38: 7.398 | D38: 4.384 | E38: 0.7285752906 | F38: 36.99 | G38: 26.95 | H38: 2.008
A39: FERRON | B39: 1.046 | C39: 6.106 | D39: 5.248 | E39: 0.8286930888 | F39: 30.53 | G39: 25.3 | H39: 1.046
A40: FILLMORE | B40: 1.45 | C40: 7.14 | D40: 5.076 | E40: 0.7969187675 | F40: 35.7 | G40: 28.45 | H40: 1.45
A41: FISH SPRINGS | B41: 1.104 | C41: 7.426 | D41: 7.426 | E41: 0.8513331538 | F41: 37.13 | G41: 31.61 | H41: 1.104
A42: FLAMING GORGE | B42: 1.302 | C42: 5.818 | D42: 5.818 | E42: 0.7762117566 | F42: 29.09 | G42: 22.58 | H42: 1.302
A43: FORT DUCHESNE | B43: 0.934 | C43: 6.976 | D43: 6.306 | E43: 0.8661123853 | F43: 34.88 | G43: 30.21 | H43: 0.934
A44: FRUITLAND | B44: 1.294 | C44: 5.822 | D44: 4.582 | E44: 0.7777396084 | F44: 29.11 | G44: 22.64 | H44: 1.294
A45: GARFIELD | B45: 1.79 | C45: 6.256 | D45: 4.064 | E45: 0.7138746803 | F45: 31.28 | G45: 22.33 | H45: 1.79
A46: GARRISON | B46: 1.01 | C46: 7.22 | D46: 6.352 | E46: 0.8601108033 | F46: 36.1 | G46: 31.05 | H46: 1.01
A47: GRANTSVILLE | B47: 1.31 | C47: 6.854 | D47: 6.854 | E47: 0.8088707324 | F47: 34.27 | G47: 27.72 | H47: 1.31
A48: GREEN RIVER | B48: 1.03 | C48: 8.396 | D48: 7.896 | E48: 0.8773225345 | F48: 41.98 | G48: 36.83 | H48: 1.03
A49: GROUSE CREEK | B49: 1.134 | C49: 5.942 | D49: 4.68 | E49: 0.8091551666 | F49: 29.71 | G49: 24.04 | H49: 1.134
A50: GUNNISON | B50: 0.974 | C50: 6.716 | D50: 5.61 | E50: 0.8549731983 | F50: 33.58 | G50: 28.71 | H50: 0.974
A51: HANKSVILLE | B51: 0.916 | C51: 9.032 | D51: 8.462 | E51: 0.8985828167 | F51: 45.16 | G51: 40.58 | H51: 0.916
A52: HANNA | B52: 1.168 | C52: 5.338 | D52: 4.098 | E52: 0.7811914575 | F52: 26.69 | G52: 20.85 | H52: 1.168
A53: HEBER | B53: 1.242 | C53: 6.298 | D53: 4.096 | E53: 0.8027945379 | F53: 31.49 | G53: 25.28 | H53: 1.242
A54: HENRIEVILLE | B54: 1.138 | C54: 6.73 | D54: 5.512 | E54: 0.8309063893 | F54: 33.65 | G54: 27.96 | H54: 1.138
A55: HUNTSVILLE | B55: 1.478 | C55: 6.254 | D55: 3.198 | E55: 0.7636712504 | F55: 31.27 | G55: 23.88 | H55: 1.478
A56: IBAPAH | B56: 1.052 | C56: 5.84 | D56: 4.804 | E56: 0.8198630137 | F56: 29.2 | G56: 23.94 | H56: 1.052
A57: IOSEPA | B57: 1.068 | C57: 8.246 | D57: 6.946 | E57: 0.8704826583 | F57: 41.23 | G57: 35.89 | H57: 1.068
A58: JENSEN | B58: 1.048 | C58: 7.304 | D58: 6.402 | E58: 0.856516977 | F58: 36.52 | G58: 31.28 | H58: 1.048
A59: KAMAS | B59: 1.22 | C59: 5.22 | D59: 3.038 | E59: 0.7662835249 | F59: 26.1 | G59: 20 | H59: 1.22
A60: KANAB | B60: 1.496 | C60: 8.52 | D60: 6.75 | E60: 0.8244131455 | F60: 42.6 | G60: 35.12 | H60: 1.496
A61: KANOSH | B61: 1.482 | C61: 7.058 | D61: 5.058 | E61: 0.790025503 | F61: 35.29 | G61: 27.88 | H61: 1.482
A62: KOOSHAREM | B62: 1.022 | C62: 5.186 | D62: 4.27 | E62: 0.802930968 | F62: 25.93 | G62: 20.82 | H62: 1.022
A63: LAKETOWN | B63: 1.2 | C63: 5.39 | D63: 3.986 | E63: 0.7773654917 | F63: 26.95 | G63: 20.95 | H63: 1.2
A64: LASAL | B64: 1.416 | C64: 6.292 | D64: 4.892 | E64: 0.7749523204 | F64: 31.46 | G64: 24.38 | H64: 1.416
A65: LAVERKIN | B65: 1.316 | C65: 9.358 | D65: 7.826 | E65: 0.8593716606 | F65: 46.79 | G65: 40.21 | H65: 1.316
A66: LEVAN | B66: 1.306 | C66: 6.66 | D66: 4.764 | E66: 0.8039039039 | F66: 33.3 | G66: 26.77 | H66: 1.306
A67: LOA | B67: 1.024 | C67: 5.234 | D67: 4.628 | E67: =+G67/F67 -> 0.804356133 | F67: 26.17 | G67: 21.05 | H67: =+(F67-G67)/5 -> 1.024
A68: LOGAN 5SW | B68: 1.466 | C68: 6.328 | D68: 3.936 | E68: 0.7683312263 | F68: 31.64 | G68: 24.31 | H68: 1.466
A69: LOGAN RADIO | B69: 1.588 | C69: 6.732 | D69: 4.666 | E69: 0.7641117053 | F69: 33.66 | G69: 25.72 | H69: 1.588
A70: LOGAN USU | B70: 1.74 | C70: 6.318 | D70: 4.138 | E70: 0.7245963913 | F70: 31.59 | G70: 22.89 | H70: 1.74
A71: MANILA | B71: 1.198 | C71: 5.496 | D71: 4.688 | E71: 0.7820232897 | F71: 27.48 | G71: 21.49 | H71: 1.198
A72: MANTI | B72: 1.314 | C72: 6.406 | D72: 4.788 | E72: 0.7948798002 | F72: 32.03 | G72: 25.46 | H72: 1.314
A73: MARYSVALE | B73: 0.976 | C73: 6.308 | D73: 5.434 | E73: 0.8452758402 | F73: 31.54 | G73: 26.66 | H73: 0.976
A74: MEXICAN HAT | B74: 0.99 | C74: 9.144 | D74: 8.416 | E74: 0.8917322835 | F74: 45.72 | G74: 40.77 | H74: 0.99
A75: MIDVALE | B75: 1.376 | C75: 7.468 | D75: 5.576 | E75: 0.815747188 | F75: 37.34 | G75: 30.46 | H75: 1.376
A76: MILFORD | B76: 1.074 | C76: 7.08 | D76: 5.97 | E76: 0.8483050847 | F76: 35.4 | G76: 30.03 | H76: 1.074
A77: MOAB | B77: 1.172 | C77: 8.61 | D77: 7.536 | E77: 0.8638792102 | F77: 43.05 | G77: 37.19 | H77: 1.172
A78: MODENA | B78: 1.124 | C78: 7.432 | D78: 6.262 | E78: 0.8487621098 | F78: 37.16 | G78: 31.54 | H78: 1.124
A79: MONTICELLO | B79: 1.4 | C79: 6.032 | D79: 4.292 | E79: 0.7679045093 | F79: 30.16 | G79: 23.16 | H79: 1.4
A80: MORGAN | B80: 1.342 | C80: 6.334 | D80: 3.894 | E80: 0.7881275655 | F80: 31.67 | G80: 24.96 | H80: 1.342
A81: MORONI | B81: 1.056 | C81: 6.686 | D81: 5.488 | E81: 0.8420580317 | F81: 33.43 | G81: 28.15 | H81: 1.056
A82: NEOLA | B82: 1.088 | C82: 5.848 | D82: 4.908 | E82: 0.8139534884 | F82: 29.24 | G82: 23.8 | H82: 1.088
A83: NEPHI | B83: 1.394 | C83: 7.142 | D83: 5.232 | E83: 0.804816578 | F83: 35.71 | G83: 28.74 | H83: 1.394
A84: NEW HARMONY | B84: 1.468 | C84: 7.108 | D84: 4.714 | E84: 0.7934721441 | F84: 35.54 | G84: 28.2 | H84: 1.468
A85: OAK CITY | B85: 1.368 | C85: 7.35 | D85: 5.662 | E85: 0.813877551 | F85: 36.75 | G85: 29.91 | H85: 1.368
A86: OGDEN SUGAR FACTORY | B86: 1.714 | C86: 7.42 | D86: 5.138 | E86: 0.7690026954 | F86: 37.1 | G86: 28.53 | H86: 1.714
A87: ORDERVILLE | B87: 1.248 | C87: 6.938 | D87: 4.922 | E87: 0.8201210724 | F87: 34.69 | G87: 28.45 | H87: 1.248
A88: PANGUITCH | B88: 1.138 | C88: 5.982 | D88: 5.058 | E88: 0.8097626212 | F88: 29.91 | G88: 24.22 | H88: 1.138
A89: PARK VALLEY | B89: 1.268 | C89: 5.924 | D89: 4.746 | E89: 0.7859554355 | F89: 29.62 | G89: 23.28 | H89: 1.268
A90: PAROWAN | B90: 1.31 | C90: 6.674 | D90: 5.182 | E90: 0.8037159125 | F90: 33.37 | G90: 26.82 | H90: 1.31
A91: PARTOUN | B91: 0.972 | C91: 6.638 | D91: 6.638 | E91: 0.8535703525 | F91: 33.19 | G91: 28.33 | H91: 0.972
A92: PELICAN LAKE/OURAY | B92: 1.224 | C92: 7.934 | D92: 7.22 | E92: 0.8457272498 | F92: 39.67 | G92: 33.55 | H92: 1.224
A93: PLEASANT GROVE | B93: 1.556 | C93: 7.05 | D93: 4.804 | E93: 0.7792907801 | F93: 35.25 | G93: 27.47 | H93: 1.556
A94: PLEASANT VALLEY/MYTON | B94: 1.028 | C94: 7.194 | D94: 6.522 | E94: 0.8571031415 | F94: 35.97 | G94: 30.83 | H94: 1.028
A95: PRICE | B95: 1.15 | C95: 7.192 | D95: 6.19 | E95: 0.8401001112 | F95: 35.96 | G95: 30.21 | H95: 1.15
A96: PROVO | B96: 1.854 | C96: 7.474 | D96: 4.828 | E96: 0.7519400589 | F96: 37.37 | G96: 28.1 | H96: 1.854
A97: RANDOLPH | B97: 1.06 | C97: 4.058 | D97: 4.058 | E97: 0.7387875801 | F97: 20.29 | G97: 14.99 | H97: 1.06
A98: RICHFIELD | B98: 1.038 | C98: 6.834 | D98: 5.944 | E98: 0.8481123793 | F98: 34.17 | G98: 28.98 | H98: 1.038
A99: RICHMOND | B99: 1.684 | C99: 6.964 | D99: 4.466 | E99: 0.7581849512 | F99: 34.82 | G99: 26.4 | H99: 1.684
A100: RIVERDALE | B100: 1.798 | C100: 6.724 | D100: 4.262 | E100: 0.7325996431 | F100: 33.62 | G100: 24.63 | H100: 1.798
A101: ROOSEVELT | B101: 1.104 | C101: 7.47 | D101: 6.668 | E101: 0.8522088353 | F101: 37.35 | G101: 31.83 | H101: 1.104
A102: RUSH VALLEY/ JOHNSON PASS | B102: 1.588 | C102: 6.692 | D102: 6.692 | E102: 0.7627017334 | F102: 33.46 | G102: 25.52 | H102: 1.588
A103: SALINA | B103: 1.08 | C103: 6.916 | D103: 5.732 | E103: 0.8438403702 | F103: 34.58 | G103: 29.18 | H103: 1.08
A104: SALT LAKE CITY | B104: 1.592 | C104: 6.992 | D104: 4.856 | E104: 0.7723112128 | F104: 34.96 | G104: 27 | H104: 1.592
A105: SANDY RANCH | B105: 1.012 | C105: 6.706 | D105: 5.93 | E105: 0.8490903668 | F105: 33.53 | G105: 28.47 | H105: 1.012
A106: SCIPIO | B106: 1.224 | C106: 6.458 | D106: 4.794 | E106: 0.810467637 | F106: 32.29 | G106: 26.17 | H106: 1.224
A107: SCOFIELD DAM | B107: 0 | C107: 0 | D107: -1.786 | H107: 0
A108: SNOWVILLE | B108: 1.24 | C108: 6.344 | D108: 4.948 | E108: 0.8045397226 | F108: 31.72 | G108: 25.52 | H108: 1.24
A109: SPANISH FORK PWR PLNT | B109: 1.782 | C109: 7.11 | D109: 4.466 | E109: 0.7493670886 | F109: 35.55 | G109: 26.64 | H109: 1.782
A110: ST GEORGE | B110: 0.976 | C110: 9.678 | D110: 8.554 | E110: 0.8991527175 | F110: 48.39 | G110: 43.51 | H110: 0.976
A111: THIOKOL/ HOWELL | B111: 1.412 | C111: 6.964 | D111: 5.316 | E111: 0.7972429638 | F111: 34.82 | G111: 27.76 | H111: 1.412
A112: TOOELE | B112: 1.728 | C112: 6.734 | D112: 4.398 | E112: 0.7433917434 | F112: 33.67 | G112: 25.03 | H112: 1.728
A113: TREMONTON | B113: 1.706 | C113: 6.716 | D113: 4.6 | E113: 0.7459797499 | F113: 33.58 | G113: 25.05 | H113: 1.706
A114: TRENTON/ LEWISTON | B114: 1.42 | C114: 6.232 | D114: 3.912 | E114: 0.7721437741 | F114: 31.16 | G114: 24.06 | H114: 1.42
A115: TROPIC | B115: 1.212 | C115: 6.28 | D115: 4.922 | E115: 0.8070063694 | F115: 31.4 | G115: 25.34 | H115: 1.212
A116: UNIV OF UTAH | B116: 1.782 | C116: 6.868 | D116: 4.376 | E116: 0.7405358183 | F116: 34.34 | G116: 25.43 | H116: 1.782
A117: UTAH LAKE LEHI | B117: 1.262 | C117: 6.914 | D117: 5.524 | E117: 0.8174717964 | F117: 34.57 | G117: 28.26 | H117: 1.262
A118: VERNAL | B118: 1.084 | C118: 7.036 | D118: 6.112 | E118: 0.8459351904 | F118: 35.18 | G118: 29.76 | H118: 1.084
A119: VERNON | B119: 1.13 | C119: 6.458 | D119: 5.266 | E119: 0.825023227 | F119: 32.29 | G119: 26.64 | H119: 1.13
A120: VEYO | B120: 1.458 | C120: 8.166 | D120: 6.21 | E120: 0.8214548126 | F120: 40.83 | G120: 33.54 | H120: 1.458
A121: WAH WAH RANCH | B121: 0.964 | C121: 6.958 | D121: 6.282 | E121: 0.8614544409 | F121: 34.79 | G121: 29.97 | H121: 0.964
A122: WANSHIP | B122: 1.322 | C122: 5.87 | D122: 3.916 | E122: 0.7747870528 | F122: 29.35 | G122: 22.74 | H122: 1.322
A123: WENDOVER | B123: 0.838 | C123: 6.392 | D123: 5.894 | E123: 0.8688986233 | F123: 31.96 | G123: 27.77 | H123: 0.838
A124: WOODRUFF | B124: 0.964 | C124: 4.352 | D124: 3.422 | E124: 0.7784926471 | F124: 21.76 | G124: 16.94 | H124: 0.964
A125: ZION NP | B125: 1.63 | C125: 8.87 | D125: 8.87 | E125: 0.8162344983 | F125: 44.35 | G125: 36.2 | H125: 1.63
